Workbook

Sheet Resoluciones (hidden)
A1: Provincia_Entidad_ | B1: Nombre Sector_ | C1: Sector_Agrupado | D1: Número de entidades que publicaron resoluciones_ | E1: Número de resoluciones publicadas | F1: Número de entidades que registraron contrataciones | G1: Número de contrataciones registradas | H1: Año
A2: Azuay | B2: Administración del Estado | C2: Gobierno Central y sus EP | D2: 17 | E2: 37 | F2: 12 | G2: 225 | H2: 2020
A3: Azuay | B3: Educación Superior | C3: Gobierno Central y sus EP | D3: 1 | E3: 1 | F3: 1 | G3: 5 | H3: 2020
A4: Azuay | B4: EP de la Función Ejecutiva | C4: Gobierno Central y sus EP | D4: 2 | E4: 24 | F4: 2 | G4: 46 | H4: 2020
A5: Azuay | B5: EP de los GAD | C5: GAD y sus EP | D5: 13 | E5: 21 | F5: 11 | G5: 79 | H5: 2020
A6: Azuay | B6: GAD Municipales | C6: GAD y sus EP | D6: 24 | E6: 31 | F6: 22 | G6: 298 | H6: 2020
A7: Azuay | B7: GAD Parroquiales Rurales | C7: GAD y sus EP | D7: 51 | E7: 56 | F7: 36 | G7: 247 | H7: 2020
A8: Azuay | B8: GAD Provinciales | C8: GAD y sus EP | D8: 1 | E8: 2 | F8: 1 | G8: 16 | H8: 2020
A9: Azuay | B9: Otros | C9: Otros | D9: 1 | E9: 1 | H9: 2020
A10: Azuay | B10: Seguridad Social | C10: Gobierno Central y sus EP | D10: 3 | E10: 3 | F10: 2 | G10: 9 | H10: 2020
A11: Azuay | B11: Sociedades Anónimas | C11: Otros | D11: 2 | E11: 2 | F11: 1 | G11: 16 | H11: 2020
A12: Bolívar | B12: Administración del Estado | C12: Gobierno Central y sus EP | D12: 7 | E12: 7 | F12: 5 | G12: 16 | H12: 2020
A13: Bolívar | B13: EP de los GAD | C13: GAD y sus EP | D13: 1 | E13: 1 | F13: 1 | G13: 4 | H13: 2020
A14: Bolívar | B14: GAD Municipales | C14: GAD y sus EP | D14: 10 | E14: 14 | F14: 7 | G14: 52 | H14: 2020
A15: Bolívar | B15: GAD Parroquiales Rurales | C15: GAD y sus EP | D15: 3 | E15: 4 | F15: 1 | G15: 1 | H15: 2020
A16: Bolívar | B16: GAD Provinciales | C16: GAD y sus EP | D16: 2 | E16: 4 | F16: 2 | G16: 6 | H16: 2020
A17: Bolívar | B17: Seguridad Social | C17: Gobierno Central y sus EP | D17: 2 | E17: 2 | F17: 1 | G17: 1 | H17: 2020
A18: Cañar | B18: Administración del Estado | C18: Gobierno Central y sus EP | D18: 7 | E18: 9 | F18: 5 | G18: 53 | H18: 2020
A19: Cañar | B19: EP de los GAD | C19: GAD y sus EP | D19: 1 | E19: 1 | F19: 1 | G19: 13 | H19: 2020
A20: Cañar | B20: GAD Municipales | C20: GAD y sus EP | D20: 11 | E20: 14 | F20: 8 | G20: 84 | H20: 2020
A21: Cañar | B21: GAD Parroquiales Rurales | C21: GAD y sus EP | D21: 15 | E21: 22 | F21: 14 | G21: 55 | H21: 2020
A22: Cañar | B22: GAD Provinciales | C22: GAD y sus EP | D22: 2 | E22: 2 | F22: 2 | G22: 18 | H22: 2020
A23: Cañar | B23: Seguridad Social | C23: Gobierno Central y sus EP | D23: 4 | E23: 5 | F23: 4 | G23: 13 | H23: 2020
A24: Carchi | B24: Administración del Estado | C24: Gobierno Central y sus EP | D24: 4 | E24: 5 | F24: 3 | G24: 9 | H24: 2020
A25: Carchi | B25: EP de los GAD | C25: GAD y sus EP | D25: 2 | E25: 2 | H25: 2020
A26: Carchi | B26: GAD Municipales | C26: GAD y sus EP | D26: 9 | E26: 15 | F26: 8 | G26: 93 | H26: 2020
A27: Carchi | B27: GAD Parroquiales Rurales | C27: GAD y sus EP | D27: 19 | E27: 23 | F27: 14 | G27: 64 | H27: 2020
A28: Carchi | B28: GAD Provinciales | C28: GAD y sus EP | D28: 1 | E28: 1 | F28: 1 | G28: 8 | H28: 2020
A29: Carchi | B29: Seguridad Social | C29: Gobierno Central y sus EP | D29: 3 | E29: 8 | F29: 3 | G29: 13 | H29: 2020
A30: Chimborazo | B30: Administración del Estado | C30: Gobierno Central y sus EP | D30: 9 | E30: 9 | F30: 8 | G30: 50 | H30: 2020
A31: Chimborazo | B31: Educación Superior | C31: Gobierno Central y sus EP | D31: 1 | E31: 1 | H31: 2020
A32: Chimborazo | B32: EP de la Función Ejecutiva | C32: Gobierno Central y sus EP | D32: 1 | E32: 1 | F32: 1 | G32: 2 | H32: 2020
A33: Chimborazo | B33: EP de los GAD | C33: GAD y sus EP | D33: 3 | E33: 3 | F33: 2 | G33: 32 | H33: 2020
A34: Chimborazo | B34: GAD Municipales | C34: GAD y sus EP | D34: 14 | E34: 17 | F34: 13 | G34: 158 | H34: 2020
A35: Chimborazo | B35: GAD Parroquiales Rurales | C35: GAD y sus EP | D35: 32 | E35: 48 | F35: 18 | G35: 84 | H35: 2020
A36: Chimborazo | B36: GAD Provinciales | C36: GAD y sus EP | D36: 2 | E36: 2 | F36: 1 | G36: 7 | H36: 2020
A37: Chimborazo | B37: Seguridad Social | C37: Gobierno Central y sus EP | D37: 4 | E37: 4 | F37: 3 | G37: 95 | H37: 2020
A38: Cotopaxi | B38: Administración del Estado | C38: Gobierno Central y sus EP | D38: 6 | E38: 9 | F38: 5 | G38: 44 | H38: 2020
A39: Cotopaxi | B39: EP de los GAD | C39: GAD y sus EP | D39: 2 | E39: 2 | F39: 2 | G39: 7 | H39: 2020
A40: Cotopaxi | B40: GAD Municipales | C40: GAD y sus EP | D40: 11 | E40: 15 | F40: 10 | G40: 56 | H40: 2020
A41: Cotopaxi | B41: GAD Parroquiales Rurales | C41: GAD y sus EP | D41: 15 | E41: 15 | F41: 10 | G41: 47 | H41: 2020
A42: Cotopaxi | B42: GAD Provinciales | C42: GAD y sus EP | D42: 2 | E42: 2 | F42: 2 | G42: 9 | H42: 2020
A43: Cotopaxi | B43: Seguridad Social | C43: Gobierno Central y sus EP | D43: 1 | E43: 1 | F43: 1 | G43: 17 | H43: 2020
A44: El oro | B44: Administración del Estado | C44: Gobierno Central y sus EP | D44: 14 | E44: 16 | F44: 12 | G44: 154 | H44: 2020
A45: El oro | B45: EP de los GAD | C45: GAD y sus EP | D45: 8 | E45: 9 | F45: 6 | G45: 53 | H45: 2020
A46: El oro | B46: GAD Municipales | C46: GAD y sus EP | D46: 19 | E46: 25 | F46: 18 | G46: 159 | H46: 2020
A47: El oro | B47: GAD Parroquiales Rurales | C47: GAD y sus EP | D47: 22 | E47: 24 | F47: 18 | G47: 103 | H47: 2020
A48: El oro | B48: GAD Provinciales | C48: GAD y sus EP | D48: 1 | E48: 1 | F48: 1 | G48: 7 | H48: 2020
A49: El oro | B49: Otros | C49: Otros | D49: 1 | E49: 1 | F49: 1 | G49: 3 | H49: 2020
A50: El oro | B50: Seguridad Social | C50: Gobierno Central y sus EP | D50: 5 | E50: 5 | F50: 5 | G50: 30 | H50: 2020
A51: Esmeraldas | B51: Administración del Estado | C51: Gobierno Central y sus EP | D51: 8 | E51: 8 | F51: 3 | G51: 7 | H51: 2020
A52: Esmeraldas | B52: EP de los GAD | C52: GAD y sus EP | D52: 1 | E52: 1 | F52: 1 | G52: 1 | H52: 2020
A53: Esmeraldas | B53: GAD Municipales | C53: GAD y sus EP | D53: 7 | E53: 11 | F53: 7 | G53: 25 | H53: 2020
A54: Esmeraldas | B54: GAD Parroquiales Rurales | C54: GAD y sus EP | D54: 6 | E54: 6 | F54: 3 | G54: 6 | H54: 2020
A55: Esmeraldas | B55: GAD Provinciales | C55: GAD y sus EP | D55: 2 | E55: 4 | F55: 1 | G55: 15 | H55: 2020
A56: Esmeraldas | B56: Seguridad Social | C56: Gobierno Central y sus EP | D56: 3 | E56: 3 | F56: 3 | G56: 13 | H56: 2020
A57: Galápagos | B57: Administración del Estado | C57: Gobierno Central y sus EP | D57: 3 | E57: 3 | F57: 2 | G57: 3 | H57: 2020
A58: Galápagos | B58: EP de los GAD | C58: GAD y sus EP | D58: 1 | E58: 1 | H58: 2020
A59: Galápagos | B59: GAD Municipales | C59: GAD y sus EP | D59: 2 | E59: 2 | F59: 2 | G59: 15 | H59: 2020
A60: Galápagos | B60: GAD Parroquiales Rurales | C60: GAD y sus EP | D60: 2 | E60: 2 | F60: 2 | G60: 15 | H60: 2020
A61: Galápagos | B61: Seguridad Social | C61: Gobierno Central y sus EP | D61: 2 | E61: 2 | H61: 2020
A62: Guayas | B62: Administración del Estado | C62: Gobierno Central y sus EP | D62: 37 | E62: 50 | F62: 26 | G62: 201 | H62: 2020
A63: Guayas | B63: Educación Superior | C63: Gobierno Central y sus EP | D63: 3 | E63: 3 | F63: 3 | G63: 6 | H63: 2020
A64: Guayas | B64: EP de la Función Ejecutiva | C64: Gobierno Central y sus EP | D64: 6 | E64: 8 | F64: 5 | G64: 8 | H64: 2020
A65: Guayas | B65: EP de los GAD | C65: GAD y sus EP | D65: 11 | E65: 13 | F65: 8 | G65: 52 | H65: 2020
A66: Guayas | B66: Financieras Públicas | C66: Otros | D66: 1 | E66: 1 | F66: 1 | G66: 4 | H66: 2020
A67: Guayas | B67: GAD Municipales | C67: GAD y sus EP | D67: 34 | E67: 51 | F67: 33 | G67: 290 | H67: 2020
A68: Guayas | B68: GAD Parroquiales Rurales | C68: GAD y sus EP | D68: 6 | E68: 7 | F68: 4 | G68: 9 | H68: 2020
A69: Guayas | B69: GAD Provinciales | C69: GAD y sus EP | D69: 1 | E69: 3 | F69: 1 | G69: 18 | H69: 2020
A70: Guayas | B70: Seguridad Social | C70: Gobierno Central y sus EP | D70: 13 | E70: 15 | F70: 8 | G70: 81 | H70: 2020
A71: Imbabura | B71: Administración del Estado | C71: Gobierno Central y sus EP | D71: 7 | E71: 8 | F71: 4 | G71: 27 | H71: 2020
A72: Imbabura | B72: Educación Superior | C72: Gobierno Central y sus EP | D72: 1 | E72: 1 | F72: 1 | G72: 1 | H72: 2020
A73: Imbabura | B73: EP de la Función Ejecutiva | C73: Gobierno Central y sus EP | D73: 1 | E73: 1 | F73: 1 | G73: 1 | H73: 2020
A74: Imbabura | B74: EP de los GAD | C74: GAD y sus EP | D74: 2 | E74: 2 | F74: 2 | G74: 6 | H74: 2020
A75: Imbabura | B75: GAD Municipales | C75: GAD y sus EP | D75: 11 | E75: 14 | F75: 9 | G75: 99 | H75: 2020
A76: Imbabura | B76: GAD Parroquiales Rurales | C76: GAD y sus EP | D76: 17 | E76: 17 | F76: 12 | G76: 77 | H76: 2020
A77: Imbabura | B77: GAD Provinciales | C77: GAD y sus EP | D77: 1 | E77: 1 | F77: 1 | G77: 2 | H77: 2020
A78: Imbabura | B78: Seguridad Social | C78: Gobierno Central y sus EP | D78: 4 | E78: 4 | F78: 4 | G78: 35 | H78: 2020
A79: Imbabura | B79: Sociedades Anónimas | C79: Otros | D79: 1 | E79: 1 | F79: 1 | G79: 2 | H79: 2020
A80: Loja | B80: Administración del Estado | C80: Gobierno Central y sus EP | D80: 13 | E80: 13 | F80: 12 | G80: 152 | H80: 2020
A81: Loja | B81: EP de los GAD | C81: GAD y sus EP | D81: 2 | E81: 2 | F81: 1 | G81: 1 | H81: 2020
A82: Loja | B82: GAD Municipales | C82: GAD y sus EP | D82: 21 | E82: 26 | F82: 16 | G82: 208 | H82: 2020
A83: Loja | B83: GAD Parroquiales Rurales | C83: GAD y sus EP | D83: 56 | E83: 59 | F83: 42 | G83: 110 | H83: 2020
A84: Loja | B84: GAD Provinciales | C84: GAD y sus EP | D84: 1 | E84: 1 | F84: 1 | G84: 8 | H84: 2020
A85: Loja | B85: Seguridad Social | C85: Gobierno Central y sus EP | D85: 6 | E85: 6 | F85: 4 | G85: 16 | H85: 2020
A86: Loja | B86: Sociedades Anónimas | C86: Otros | D86: 1 | E86: 2 | F86: 1 | G86: 3 | H86: 2020
A87: Los Ríos | B87: Administración del Estado | C87: Gobierno Central y sus EP | D87: 6 | E87: 10 | F87: 6 | G87: 26 | H87: 2020
A88: Los Ríos | B88: EP de los GAD | C88: GAD y sus EP | D88: 3 | E88: 3 | F88: 2 | G88: 28 | H88: 2020
A89: Los Ríos | B89: GAD Municipales | C89: GAD y sus EP | D89: 16 | E89: 26 | F89: 14 | G89: 136 | H89: 2020
A90: Los Ríos | B90: GAD Parroquiales Rurales | C90: GAD y sus EP | D90: 8 | E90: 8 | F90: 4 | G90: 11 | H90: 2020
A91: Los Ríos | B91: GAD Provinciales | C91: GAD y sus EP | D91: 1 | E91: 1 | H91: 2020
A92: Los Ríos | B92: Seguridad Social | C92: Gobierno Central y sus EP | D92: 3 | E92: 3 | F92: 2 | G92: 13 | H92: 2020
A93: Manabí | B93: Administración del Estado | C93: Gobierno Central y sus EP | D93: 27 | E93: 28 | F93: 21 | G93: 118 | H93: 2020
A94: Manabí | B94: Educación Superior | C94: Gobierno Central y sus EP | D94: 1 | E94: 1 | F94: 1 | G94: 3 | H94: 2020
A95: Manabí | B95: EP de los GAD | C95: GAD y sus EP | D95: 17 | E95: 23 | F95: 8 | G95: 13 | H95: 2020
A96: Manabí | B96: GAD Municipales | C96: GAD y sus EP | D96: 26 | E96: 36 | F96: 19 | G96: 199 | H96: 2020
A97: Manabí | B97: GAD Parroquiales Rurales | C97: GAD y sus EP | D97: 40 | E97: 44 | F97: 23 | G97: 75 | H97: 2020
A98: Manabí | B98: GAD Provinciales | C98: GAD y sus EP | D98: 1 | E98: 1 | F98: 1 | G98: 54 | H98: 2020
A99: Manabí | B99: Otros | C99: Otros | D99: 2 | E99: 2 | H99: 2020
A100: Manabí | B100: Seguridad Social | C100: Gobierno Central y sus EP | D100: 6 | E100: 9 | F100: 6 | G100: 50 | H100: 2020
A101: Morona Santiago | B101: Administración del Estado | C101: Gobierno Central y sus EP | D101: 10 | E101: 10 | F101: 9 | G101: 132 | H101: 2020
A102: Morona Santiago | B102: GAD Municipales | C102: GAD y sus EP | D102: 15 | E102: 20 | F102: 14 | G102: 156 | H102: 2020
A103: Morona Santiago | B103: GAD Parroquiales Rurales | C103: GAD y sus EP | D103: 12 | E103: 12 | F103: 7 | G103: 17 | H103: 2020
A104: Morona Santiago | B104: GAD Provinciales | C104: GAD y sus EP | D104: 2 | E104: 4 | F104: 2 | G104: 10 | H104: 2020
A105: Morona Santiago | B105: Seguridad Social | C105: Gobierno Central y sus EP | D105: 1 | E105: 1 | H105: 2020
A106: Napo | B106: Administración del Estado | C106: Gobierno Central y sus EP | D106: 2 | E106: 3 | F106: 2 | G106: 12 | H106: 2020
A107: Napo | B107: Educación Superior | C107: Gobierno Central y sus EP | D107: 1 | E107: 1 | F107: 1 | G107: 3 | H107: 2020
A108: Napo | B108: GAD Municipales | C108: GAD y sus EP | D108: 5 | E108: 6 | F108: 5 | G108: 50 | H108: 2020
A109: Napo | B109: GAD Parroquiales Rurales | C109: GAD y sus EP | D109: 16 | E109: 17 | F109: 8 | G109: 29 | H109: 2020
A110: Napo | B110: GAD Provinciales | C110: GAD y sus EP | D110: 2 | E110: 2 | F110: 2 | G110: 8 | H110: 2020
A111: Napo | B111: Seguridad Social | C111: Gobierno Central y sus EP | D111: 1 | E111: 1 | F111: 1 | G111: 2 | H111: 2020
A112: Orellana | B112: Administración del Estado | C112: Gobierno Central y sus EP | D112: 3 | E112: 3 | F112: 3 | G112: 16 | H112: 2020
A113: Orellana | B113: GAD Municipales | C113: GAD y sus EP | D113: 6 | E113: 11 | F113: 4 | G113: 27 | H113: 2020
A114: Orellana | B114: GAD Parroquiales Rurales | C114: GAD y sus EP | D114: 16 | E114: 17 | F114: 8 | G114: 21 | H114: 2020
A115: Orellana | B115: GAD Provinciales | C115: GAD y sus EP | D115: 1 | E115: 2 | F115: 1 | G115: 4 | H115: 2020
A116: Orellana | B116: Seguridad Social | C116: Gobierno Central y sus EP | D116: 1 | E116: 1 | F116: 1 | G116: 2 | H116: 2020
A117: Pastaza | B117: Administración del Estado | C117: Gobierno Central y sus EP | D117: 4 | E117: 5 | F117: 3 | G117: 86 | H117: 2020
A118: Pastaza | B118: Educación Superior | C118: Gobierno Central y sus EP | D118: 1 | E118: 1 | F118: 1 | G118: 2 | H118: 2020
A119: Pastaza | B119: EP de los GAD | C119: GAD y sus EP | D119: 2 | E119: 2 | F119: 2 | G119: 5 | H119: 2020
A120: Pastaza | B120: GAD Municipales | C120: GAD y sus EP | D120: 6 | E120: 12 | F120: 5 | G120: 96 | H120: 2020
A121: Pastaza | B121: GAD Parroquiales Rurales | C121: GAD y sus EP | D121: 16 | E121: 19 | F121: 9 | G121: 33 | H121: 2020
A122: Pastaza | B122: GAD Provinciales | C122: GAD y sus EP | D122: 2 | E122: 2 | F122: 2 | G122: 18 | H122: 2020
A123: Pastaza | B123: Seguridad Social | C123: Gobierno Central y sus EP | D123: 1 | E123: 1 | F123: 1 | G123: 7 | H123: 2020
A124: Pichincha | B124: Administración del Estado | C124: Gobierno Central y sus EP | D124: 50 | E124: 68 | F124: 38 | G124: 275 | H124: 2020
A125: Pichincha | B125: EP de la Función Ejecutiva | C125: Gobierno Central y sus EP | D125: 5 | E125: 7 | F125: 4 | G125: 32 | H125: 2020
A126: Pichincha | B126: EP de los GAD | C126: GAD y sus EP | D126: 13 | E126: 18 | F126: 12 | G126: 59 | H126: 2020
A127: Pichincha | B127: Financieras Públicas | C127: Otros | D127: 3 | E127: 4 | F127: 1 | G127: 24 | H127: 2020
A128: Pichincha | B128: GAD Municipales | C128: GAD y sus EP | D128: 19 | E128: 35 | F128: 17 | G128: 196 | H128: 2020
A129: Pichincha | B129: GAD Parroquiales Rurales | C129: GAD y sus EP | D129: 11 | E129: 17 | F129: 5 | G129: 43 | H129: 2020
A130: Pichincha | B130: GAD Provinciales | C130: GAD y sus EP | D130: 2 | E130: 3 | F130: 2 | G130: 25 | H130: 2020
A131: Pichincha | B131: Otros | C131: Otros | D131: 1 | E131: 3 | F131: 1 | G131: 3 | H131: 2020
A132: Pichincha | B132: Seguridad Social | C132: Gobierno Central y sus EP | D132: 16 | E132: 23 | F132: 11 | G132: 64 | H132: 2020
A133: Pichincha | B133: Sociedades Anónimas | C133: Otros | D133: 1 | E133: 1 | F133: 1 | G133: 8 | H133: 2020
A134: Santa Elena | B134: Administración del Estado | C134: Gobierno Central y sus EP | D134: 4 | E134: 5 | F134: 3 | G134: 22 | H134: 2020
A135: Santa Elena | B135: EP de los GAD | C135: GAD y sus EP | D135: 1 | E135: 2 | F135: 1 | G135: 1 | H135: 2020
A136: Santa Elena | B136: GAD Municipales | C136: GAD y sus EP | D136: 4 | E136: 6 | F136: 4 | G136: 77 | H136: 2020
A137: Santa Elena | B137: GAD Parroquiales Rurales | C137: GAD y sus EP | D137: 8 | E137: 9 | F137: 6 | G137: 31 | H137: 2020
A138: Santa Elena | B138: GAD Provinciales | C138: GAD y sus EP | D138: 1 | E138: 1 | F138: 1 | G138: 7 | H138: 2020
A139: Santa Elena | B139: Seguridad Social | C139: Gobierno Central y sus EP | D139: 2 | E139: 2 | F139: 1 | G139: 4 | H139: 2020
A140: Santo Domingo de los Tsáchilas | B140: Administración del Estado | C140: Gobierno Central y sus EP | D140: 6 | E140: 8 | F140: 5 | G140: 28 | H140: 2020
A141: Santo Domingo de los Tsáchilas | B141: EP de los GAD | C141: GAD y sus EP | D141: 2 | E141: 2 | F141: 1 | G141: 2 | H141: 2020
A142: Santo Domingo de los Tsáchilas | B142: GAD Municipales | C142: GAD y sus EP | D142: 5 | E142: 10 | F142: 4 | G142: 11 | H142: 2020
A143: Santo Domingo de los Tsáchilas | B143: GAD Parroquiales Rurales | C143: GAD y sus EP | D143: 6 | E143: 11 | F143: 4 | G143: 18 | H143: 2020
A144: Santo Domingo de los Tsáchilas | B144: GAD Provinciales | C144: GAD y sus EP | D144: 1 | E144: 1 | H144: 2020
A145: Santo Domingo de los Tsáchilas | B145: Seguridad Social | C145: Gobierno Central y sus EP | D145: 2 | E145: 2 | F145: 2 | G145: 26 | H145: 2020
A146: Sucumbíos | B146: Administración del Estado | C146: Gobierno Central y sus EP | D146: 4 | E146: 4 | F146: 3 | G146: 9 | H146: 2020
A147: Sucumbíos | B147: GAD Municipales | C147: GAD y sus EP | D147: 14 | E147: 24 | F147: 13 | G147: 77 | H147: 2020
A148: Sucumbíos | B148: GAD Parroquiales Rurales | C148: GAD y sus EP | D148: 19 | E148: 22 | F148: 10 | G148: 40 | H148: 2020
A149: Sucumbíos | B149: GAD Provinciales | C149: GAD y sus EP | D149: 3 | E149: 3 | F149: 3 | G149: 9 | H149: 2020
A150: Sucumbíos | B150: Seguridad Social | C150: Gobierno Central y sus EP | D150: 1 | E150: 1 | F150: 1 | G150: 3 | H150: 2020
A151: Tungurahua | B151: Administración del Estado | C151: Gobierno Central y sus EP | D151: 4 | E151: 8 | F151: 3 | G151: 26 | H151: 2020
A152: Tungurahua | B152: EP de los GAD | C152: GAD y sus EP | D152: 5 | E152: 5 | F152: 5 | G152: 45 | H152: 2020
A153: Tungurahua | B153: GAD Municipales | C153: GAD y sus EP | D153: 17 | E153: 22 | F153: 10 | G153: 146 | H153: 2020
A154: Tungurahua | B154: GAD Parroquiales Rurales | C154: GAD y sus EP | D154: 32 | E154: 41 | F154: 29 | G154: 217 | H154: 2020
A155: Tungurahua | B155: GAD Provinciales | C155: GAD y sus EP | D155: 2 | E155: 4 | F155: 2 | G155: 19 | H155: 2020
A156: Tungurahua | B156: Otros | C156: Otros | D156: 1 | E156: 1 | H156: 2020
A157: Tungurahua | B157: Seguridad Social | C157: Gobierno Central y sus EP | D157: 3 | E157: 4 | F157: 2 | G157: 4 | H157: 2020
A158: Zamora Chinchipe | B158: Administración del Estado | C158: Gobierno Central y sus EP | D158: 8 | E158: 8 | F158: 6 | G158: 56 | H158: 2020
A159: Zamora Chinchipe | B159: EP de los GAD | C159: GAD y sus EP | D159: 1 | E159: 4 | H159: 2020
A160: Zamora Chinchipe | B160: GAD Municipales | C160: GAD y sus EP | D160: 10 | E160: 14 | F160: 8 | G160: 50 | H160: 2020
A161: Zamora Chinchipe | B161: GAD Parroquiales Rurales | C161: GAD y sus EP | D161: 18 | E161: 18 | F161: 14 | G161: 36 | H161: 2020
A162: Zamora Chinchipe | B162: GAD Provinciales | C162: GAD y sus EP | D162: 1 | E162: 1 | F162: 1 | G162: 20 | H162: 2020
A163: Zamora Chinchipe | B163: Seguridad Social | C163: Gobierno Central y sus EP | D163: 2 | E163: 2 | F163: 1 | G163: 9 | H163: 2020

Sheet Base (hidden)
A1: Código_Proceso | B1: Descripción CPC_N9 | C1: Tipo_compra | D1: Nombre_Entidad | E1: Provincia_Entidad_ | F1: Razón_Social_Proveedor | G1: Valor_adjudicado | H1: Valor_adjudicado millones | I1: Nombre Sector_ | J1: Nombre Sectorial_ | K1: Sector_Agrupado | L1: Mes
A2: 0072020-00001 | B2: VENTILADOR DE CUIDADOS INTENSIVOS ADULTO/PEDIATRICO | C2: Bien | D2: GOBIERNO PROVINCIAL DEL AZUAY | E2: Azuay | F2: CABRERA IZQUIERDO FAUSTO HERNAN | G2: 68925 | H2: =G2/1000000 -> 0.068925 | I2: GAD Provinciales | J2: Régimen de GAD | K2: GAD y sus EP | L2: Abril
A3: 0072020-00004 | B3: GAFAS PROTECTORAS TRANSPARENTES | C3: Bien | D3: GOBIERNO PROVINCIAL DEL AZUAY | E3: Azuay | F3: CORTEZ NIETO INGRID JAZMIN | G3: 10375 | H3: =G3/1000000 -> 0.010375 | I3: GAD Provinciales | J3: Régimen de GAD | K3: GAD y sus EP | L3: Mayo
A4: 0072020-00014 | B4: OTROS TUBOS, CANOS Y MANGUERAS DE MATERIALES PLASTICOS REFORZADOS O COMBINADOS CON OTROS MATERIALES | C4: Bien | D4: GOBIERNO PROVINCIAL DEL AZUAY | E4: Azuay | F4: CALLE CALLE WILSON MARCELO | G4: 12833.7 | H4: 0.0128337 | I4: GAD Provinciales | J4: Régimen de GAD | K4: GAD y sus EP | L4: Junio
A5: 0072020-00005 | B5: GENERADOR DE HIPOCLORITO DE SODIO | C5: Bien | D5: GOBIERNO PROVINCIAL DEL AZUAY | E5: Azuay | F5: CLORID S.A. | G5: 6313.68 | H5: 0.00631368 | I5: GAD Provinciales | J5: Régimen de GAD | K5: GAD y sus EP | L5: Mayo
A6: 0072020-00008 | B6: INSTRUMENTOS Y APARATOS DE MEDICION Y DIAGNOSTICO MEDICO Y OTROS | C6: Bien | D6: GOBIERNO PROVINCIAL DEL AZUAY | E6: Azuay | F6: SIMED S. A. | G6: 135000 | H6: 0.135 | I6: GAD Provinciales | J6: Régimen de GAD | K6: GAD y sus EP | L6: Mayo
A7: 0072020-00013 | B7: OTRAS PARTES Y PIEZAS PARA APARATOS ELECTRICOS PARA EMPALME, CORTE, PROTECCION DE CONEXION DE CIRCUITOS ELECTRICOS, PARA VOLTAJES IGUALES O SUPERIORES A 1000 V, CUADROS, PANELES (INCLUSO PANELES DE CONTROL NUMERICO), CONSOLAS, MESAS, CAJAS Y OTRASBASES | C7: Bien | D7: GOBIERNO PROVINCIAL DEL AZUAY | E7: Azuay | F7: ZARATE NAREA ANA DEL ROCIO | G7: 1158.37 | H7: 0.00115837 | I7: GAD Provinciales | J7: Régimen de GAD | K7: GAD y sus EP | L7: Junio
A8: EMERGENCIA-GPA-001-2-00002 | B8: MASCARILLAS DE PROTECCION | C8: Bien | D8: GOBIERNO PROVINCIAL DEL AZUAY | E8: Azuay | F8: LEON BROCEL ANDREA NATASHA | G8: 30000 | H8: 0.03 | I8: GAD Provinciales | J8: Régimen de GAD | K8: GAD y sus EP | L8: Abril
A9: 0072020-00015 | B9: ENCERADOS, TOLDOS Y TOLDOS DE PROTECCION CONTRA EL SOL, DE ALGODON, DE FIBRAS SINTETICAS Y OTRAS MATERIAS TEXTILES | C9: Bien | D9: GOBIERNO PROVINCIAL DEL AZUAY | E9: Azuay | F9: MUÑOZ BRITO MARY LUZ | G9: 3780 | H9: 0.00378 | I9: GAD Provinciales | J9: Régimen de GAD | K9: GAD y sus EP | L9: Junio
A10: 0072020-00002 | B10: OVEROL EN ALGODON-POLIESTER | C10: Bien | D10: GOBIERNO PROVINCIAL DEL AZUAY | E10: Azuay | F10: CAÑAR CAÑAR LUIS GUILLERMO | G10: 54000 | H10: 0.054 | I10: GAD Provinciales | J10: Régimen de GAD | K10: GAD y sus EP | L10: Abril
A11: 0072020-00006 | B11: MASCARILLAS DE PROTECCION | C11: Bien | D11: GOBIERNO PROVINCIAL DEL AZUAY | E11: Azuay | F11: SANCHEZ SANCHEZ JHON PATRICIO | G11: 112500 | H11: 0.1125 | I11: GAD Provinciales | J11: Régimen de GAD | K11: GAD y sus EP | L11: Junio
A12: 0072020-00010 | B12: INSTRUMENTOS Y APARATOS DE MEDICION Y DIAGNOSTICO MEDICO Y OTROS | C12: Bien | D12: GOBIERNO PROVINCIAL DEL AZUAY | E12: Azuay | F12: BIOGENGTLAB S.A. | G12: 20250 | H12: 0.02025 | I12: GAD Provinciales | J12: Régimen de GAD | K12: GAD y sus EP | L12: Junio
A13: 0072020-00009 | B13: MASCARILLAS DE PROTECCION | C13: Bien | D13: GOBIERNO PROVINCIAL DEL AZUAY | E13: Azuay | F13: GUADAMUD MORENO ERIKA LORENA | G13: 16250 | H13: 0.01625 | I13: GAD Provinciales | J13: Régimen de GAD | K13: GAD y sus EP | L13: Junio
A14: 0072020-00003 | B14: INSTRUMENTOS Y APARATOS DE MEDICION Y DIAGNOSTICO MEDICO Y OTROS | C14: Bien | D14: GOBIERNO PROVINCIAL DEL AZUAY | E14: Azuay | F14: BIOGENGTLAB S.A. | G14: 20250 | H14: 0.02025 | I14: GAD Provinciales | J14: Régimen de GAD | K14: GAD y sus EP | L14: Abril
A15: 0072020-00012 | B15: PUERTAS DE ALUMINIO | C15: Bien | D15: GOBIERNO PROVINCIAL DEL AZUAY | E15: Azuay | F15: RODRIGUEZ CHICA DANILO FABRICIO | G15: 6729.62 | H15: 0.00672962 | I15: GAD Provinciales | J15: Régimen de GAD | K15: GAD y sus EP | L15: Junio
A16: 0072020-00011 | B16: INSTRUMENTOS Y APARATOS DE MEDICION Y DIAGNOSTICO MEDICO Y OTROS | C16: Bien | D16: GOBIERNO PROVINCIAL DEL AZUAY | E16: Azuay | F16: SIMED S. A. | G16: 45000 | H16: 0.045 | I16: GAD Provinciales | J16: Régimen de GAD | K16: GAD y sus EP | L16: Junio
A17: 0072020-00007 | B17: MASCARILLAS DE PROTECCION | C17: Bien | D17: GOBIERNO PROVINCIAL DEL AZUAY | E17: Azuay | F17: LAZO MARTINEZ MARIA MANUELA | G17: 112500 | H17: 0.1125 | I17: GAD Provinciales | J17: Régimen de GAD | K17: GAD y sus EP | L17: Junio
A18: SG-030-2020-00008 | B18: PULVERIZADORES. | C18: Bien | D18: GOBIERNO AUTONOMO DESCENTRALIZADO MUNICIPAL DEL CANTON CUENCA | E18: Azuay | F18: AGROTA CIA. LTDA. | G18: 833 | H18: 0.000833 | I18: GAD Municipales | J18: Régimen de GAD | K18: GAD y sus EP | L18: Abril
A19: SG-030-2020-00007 | B19: MASCARILLAS DE PROTECCION | C19: Bien | D19: GOBIERNO AUTONOMO DESCENTRALIZADO MUNICIPAL DEL CANTON CUENCA | E19: Azuay | F19: GERARDO ORTIZ E HIJOS CIA. LTDA. | G19: 2202.84048 | H19: 0.00220284048 | I19: GAD Municipales | J19: Régimen de GAD | K19: GAD y sus EP | L19: Abril
A20: SG-030-2020-00009 | B20: DESINFECTANTE AMONIO CUATERNARIO | C20: Bien | D20: GOBIERNO AUTONOMO DESCENTRALIZADO MUNICIPAL DEL CANTON CUENCA | E20: Azuay | F20: VIVEPAPEL CIA.LTDA. | G20: 82500 | H20: 0.0825 | I20: GAD Municipales | J20: Régimen de GAD | K20: GAD y sus EP | L20: Abril
A21: SG-030-2020-00002 | B21: PAÑO DE LIMPIEZA PARA SUPERFICIES 10 UNIDADES | C21: Bien | D21: GOBIERNO AUTONOMO DESCENTRALIZADO MUNICIPAL DEL CANTON CUENCA | E21: Azuay | F21: GERARDO ORTIZ E HIJOS CIA. LTDA. | G21: 27.6 | H21: 2.76e-05 | I21: GAD Municipales | J21: Régimen de GAD | K21: GAD y sus EP | L21: Marzo
A22: SG-030-2020-00011 | B22: MASCARILLAS DE PROTECCION | C22: Bien | D22: GOBIERNO AUTONOMO DESCENTRALIZADO MUNICIPAL DEL CANTON CUENCA | E22: Azuay | F22: VASQUEZ MOSCOSO ANDREA VERONICA | G22: 9570 | H22: 0.00957 | I22: GAD Municipales | J22: Régimen de GAD | K22: GAD y sus EP | L22: Abril
A23: SG-030-2020-00013 | B23: PRENDAS DE VESTIR PARA SEGURIDAD INDUSTRIAL | C23: Bien | D23: GOBIERNO AUTONOMO DESCENTRALIZADO MUNICIPAL DEL CANTON CUENCA | E23: Azuay | F23: JARAMILLO ARIAS ALEXIS ROBERTO | G23: 28425 | H23: 0.028425 | I23: GAD Municipales | J23: Régimen de GAD | K23: GAD y sus EP | L23: Abril
A24: SG-030-2020-00015 | B24: INSUMOS PARA ANATOMIA PATOLOGICA | C24: Bien | D24: GOBIERNO AUTONOMO DESCENTRALIZADO MUNICIPAL DEL CANTON CUENCA | E24: Azuay | F24: MEDILABOR S.A. | G24: 100000 | H24: 0.1 | I24: GAD Municipales | J24: Régimen de GAD | K24: GAD y sus EP | L24: Mayo
A25: SG-030-2020-00017 | B25: BOMBA MANUAL DE MOCHILA | C25: Bien | D25: GOBIERNO AUTONOMO DESCENTRALIZADO MUNICIPAL DEL CANTON CUENCA | E25: Azuay | F25: ALTAMIRANO GOMEZ MARIA GABRIELA | G25: 2225 | H25: 0.002225 | I25: GAD Municipales | J25: Régimen de GAD | K25: GAD y sus EP | L25: Mayo
A26: SG-030-2020-00021 | B26: MASCARILLA DE SILICONA MEDIA CARA | C26: Bien | D26: GOBIERNO AUTONOMO DESCENTRALIZADO MUNICIPAL DEL CANTON CUENCA | E26: Azuay | F26: JARAMILLO ARIAS ALEXIS ROBERTO | G26: 2640 | H26: 0.00264 | I26: GAD Municipales | J26: Régimen de GAD | K26: GAD y sus EP | L26: Mayo
A27: SG-030-2020-00011 | B27: GUANTE DE TRABAJO EN NITRILO | C27: Bien | D27: GOBIERNO AUTONOMO DESCENTRALIZADO MUNICIPAL DEL CANTON CUENCA | E27: Azuay | F27: VASQUEZ MOSCOSO ANDREA VERONICA | G27: 9500 | H27: 0.0095 | I27: GAD Municipales | J27: Régimen de GAD | K27: GAD y sus EP | L27: Abril
A28: SG-030-2020-00005 | B28: SERVICIO DE FUMIGACIÓN CON TÉCNICOS CALIFICADOS | C28: Servicio | D28: GOBIERNO AUTONOMO DESCENTRALIZADO MUNICIPAL DEL CANTON CUENCA | E28: Azuay | F28: SERVICIO DE LIMPIEZA MALO PIEDRA CIA. LTDA. | G28: 4835 | H28: 0.004835 | I28: GAD Municipales | J28: Régimen de GAD | K28: GAD y sus EP | L28: Marzo
A29: SG-030-2020-00023 | B29: DESINFECTANTE AMONIO CUATERNARIO | C29: Bien | D29: GOBIERNO AUTONOMO DESCENTRALIZADO MUNICIPAL DEL CANTON CUENCA | E29: Azuay | F29: PUMA PASATO NELLY CECILIA | G29: 49850 | H29: 0.04985 | I29: GAD Municipales | J29: Régimen de GAD | K29: GAD y sus EP | L29: Mayo
A30: SG-030-2020-00021 | B30: PROTECTOR VISUAL | C30: Bien | D30: GOBIERNO AUTONOMO DESCENTRALIZADO MUNICIPAL DEL CANTON CUENCA | E30: Azuay | F30: JARAMILLO ARIAS ALEXIS ROBERTO | G30: 7953.25 | H30: 0.00795325 | I30: GAD Municipales | J30: Régimen de GAD | K30: GAD y sus EP | L30: Mayo
A31: SG-030-2020-00018 | B31: MATERIALES DE PUBLICIDAD (ARTICULOS PUBLICITARIOS, SERIGRAFIA, TAMPOGRAFIA, SOUVENIRS, ENTRE OTROS) | C31: Bien | D31: GOBIERNO AUTONOMO DESCENTRALIZADO MUNICIPAL DEL CANTON CUENCA | E31: Azuay | F31: CHUMBI TOLEDO ORLANDO LENIN | G31: 3590 | H31: 0.00359 | I31: GAD Municipales | J31: Régimen de GAD | K31: GAD y sus EP | L31: Mayo
A32: SG-030-2020-00010 | B32: PRENDAS DE VESTIR PARA SEGURIDAD INDUSTRIAL | C32: Bien | D32: GOBIERNO AUTONOMO DESCENTRALIZADO MUNICIPAL DEL CANTON CUENCA | E32: Azuay | F32: GLOBALITE S.A. | G32: 14700 | H32: 0.0147 | I32: GAD Municipales | J32: Régimen de GAD | K32: GAD y sus EP | L32: Abril
A33: SG-030-2020-00014 | B33: CLORO | C33: Bien | D33: GOBIERNO AUTONOMO DESCENTRALIZADO MUNICIPAL DEL CANTON CUENCA | E33: Azuay | F33: ABAD ROMERO ELSA ELEANA | G33: 7000 | H33: 0.007 | I33: GAD Municipales | J33: Régimen de GAD | K33: GAD y sus EP | L33: Abril
A34: SG-030-2020-00007 | B34: ALCOHOL ANTISEPTICO GALON | C34: Bien | D34: GOBIERNO AUTONOMO DESCENTRALIZADO MUNICIPAL DEL CANTON CUENCA | E34: Azuay | F34: GERARDO ORTIZ E HIJOS CIA. LTDA. | G34: 42.672 | H34: 4.2672e-05 | I34: GAD Municipales | J34: Régimen de GAD | K34: GAD y sus EP | L34: Abril
A35: SG-030-2020-00024 | B35: ÑNGULOS Y PERFILES DE ALUMINIO T, L, U | C35: Bien | D35: GOBIERNO AUTONOMO DESCENTRALIZADO MUNICIPAL DEL CANTON CUENCA | E35: Azuay | F35: AVILA VASQUEZ JUAN PABLO | G35: 279.9 | H35: 0.0002799 | I35: GAD Municipales | J35: Régimen de GAD | K35: GAD y sus EP | L35: Junio
A36: SG-030-2020-00002 | B36: JABON | C36: Bien | D36: GOBIERNO AUTONOMO DESCENTRALIZADO MUNICIPAL DEL CANTON CUENCA | E36: Azuay | F36: GERARDO ORTIZ E HIJOS CIA. LTDA. | G36: 100.98 | H36: 0.00010098 | I36: GAD Municipales | J36: Régimen de GAD | K36: GAD y sus EP | L36: Marzo
A37: SG-030-2020-00019 | B37: MASCARILLAS DE PROTECCION | C37: Bien | D37: GOBIERNO AUTONOMO DESCENTRALIZADO MUNICIPAL DEL CANTON CUENCA | E37: Azuay | F37: JARA CHOROZY CARINA PATRICIA | G37: 38800 | H37: 0.0388 | I37: GAD Municipales | J37: Régimen de GAD | K37: GAD y sus EP | L37: Mayo
A38: SG-030-2020-00021 | B38: BOTA EN CAUCHO | C38: Bien | D38: GOBIERNO AUTONOMO DESCENTRALIZADO MUNICIPAL DEL CANTON CUENCA | E38: Azuay | F38: JARAMILLO ARIAS ALEXIS ROBERTO | G38: 900 | H38: 0.0009 | I38: GAD Municipales | J38: Régimen de GAD | K38: GAD y sus EP | L38: Mayo
A39: SG-030-2020-00024 | B39: OTRAS PLANCHAS, HOJAS, PELICULAS, CINTAS Y TIRAS, DE MATERIALES PLASTICOS DE PRODUCTOS NO CELULARES, DE POLIMEROS DE ESTIRENO, DE CLORURO DE VINILO DE POLIURETANOS, DE CELULOSA REGENERADA, Y DE LOS DEMAS PLASTICOS, COMBINADAS CON OTROS MATERIALES,ESTAMPAD | C39: Bien | D39: GOBIERNO AUTONOMO DESCENTRALIZADO MUNICIPAL DEL CANTON CUENCA | E39: Azuay | F39: AVILA VASQUEZ JUAN PABLO | G39: 8070 | H39: 0.00807 | I39: GAD Municipales | J39: Régimen de GAD | K39: GAD y sus EP | L39: Junio
A40: SG-030-2020-00006 | B40: BOLSAS PLASTICAS PARA BASURA | C40: Bien | D40: GOBIERNO AUTONOMO DESCENTRALIZADO MUNICIPAL DEL CANTON CUENCA | E40: Azuay | F40: GERARDO ORTIZ E HIJOS CIA. LTDA. | G40: 55.9962 | H40: 5.59962e-05 | I40: GAD Municipales | J40: Régimen de GAD | K40: GAD y sus EP | L40: Marzo
A41: SG-030-2020-00020 | B41: GEL ALCOHOL ANTISEPTICO | C41: Bien | D41: GOBIERNO AUTONOMO DESCENTRALIZADO MUNICIPAL DEL CANTON CUENCA | E41: Azuay | F41: VITAFARMA ECUADOR CIA. LTDA. | G41: 14000 | H41: 0.014 | I41: GAD Municipales | J41: Régimen de GAD | K41: GAD y sus EP | L41: Mayo
A42: SG-030-2020-00002 | B42: HERRAMIENTAS, MONTURAS Y MANGOS DE HERRAMIENTAS Y MANGOS DE CEPILLOS O ESCOBAS DE MADERA | C42: Bien | D42: GOBIERNO AUTONOMO DESCENTRALIZADO MUNICIPAL DEL CANTON CUENCA | E42: Azuay | F42: GERARDO ORTIZ E HIJOS CIA. LTDA. | G42: 9.75 | H42: 9.75e-06 | I42: GAD Municipales | J42: Régimen de GAD | K42: GAD y sus EP | L42: Marzo
A43: SG-030-2020-00006 | B43: FUNDA DE BASURA USO INDUSTRIAL NEGRA 35X47 PULGADAS | C43: Bien | D43: GOBIERNO AUTONOMO DESCENTRALIZADO MUNICIPAL DEL CANTON CUENCA | E43: Azuay | F43: GERARDO ORTIZ E HIJOS CIA. LTDA. | G43: 128.064 | H43: 0.000128064 | I43: GAD Municipales | J43: Régimen de GAD | K43: GAD y sus EP | L43: Marzo
A44: SG-030-2020-00004 | B44: PULVERIZADORES. | C44: Bien | D44: GOBIERNO AUTONOMO DESCENTRALIZADO MUNICIPAL DEL CANTON CUENCA | E44: Azuay | F44: AGROTA CIA. LTDA. | G44: 119 | H44: 0.000119 | I44: GAD Municipales | J44: Régimen de GAD | K44: GAD y sus EP | L44: Marzo
A45: SG-030-2020-00014 | B45: ALCOHOL ETILICO | C45: Bien | D45: GOBIERNO AUTONOMO DESCENTRALIZADO MUNICIPAL DEL CANTON CUENCA | E45: Azuay | F45: ABAD ROMERO ELSA ELEANA | G45: 11350 | H45: 0.01135 | I45: GAD Municipales | J45: Régimen de GAD | K45: GAD y sus EP | L45: Abril
A46: SG-030-2020-00021 | B46: DISCO FILTRANTE PARA VAPORES ORGANICOS | C46: Bien | D46: GOBIERNO AUTONOMO DESCENTRALIZADO MUNICIPAL DEL CANTON CUENCA | E46: Azuay | F46: JARAMILLO ARIAS ALEXIS ROBERTO | G46: 7200 | H46: 0.0072 | I46: GAD Municipales | J46: Régimen de GAD | K46: GAD y sus EP | L46: Mayo
A47: SG-030-2020-00004 | B47: BOMBA MANUAL DE MOCHILA | C47: Bien | D47: GOBIERNO AUTONOMO DESCENTRALIZADO MUNICIPAL DEL CANTON CUENCA | E47: Azuay | F47: AGROTA CIA. LTDA. | G47: 349 | H47: 0.000349 | I47: GAD Municipales | J47: Régimen de GAD | K47: GAD y sus EP | L47: Marzo
A48: SG-030-2020-00021 | B48: MASCARILLAS DE PROTECCION | C48: Bien | D48: GOBIERNO AUTONOMO DESCENTRALIZADO MUNICIPAL DEL CANTON CUENCA | E48: Azuay | F48: JARAMILLO ARIAS ALEXIS ROBERTO | G48: 28420 | H48: 0.02842 | I48: GAD Municipales | J48: Régimen de GAD | K48: GAD y sus EP | L48: Mayo
A49: SG-030-2020-00003 | B49: PULVERIZADORES. | C49: Bien | D49: GOBIERNO AUTONOMO DESCENTRALIZADO MUNICIPAL DEL CANTON CUENCA | E49: Azuay | F49: AGROTA CIA. LTDA. | G49: 119 | H49: 0.000119 | I49: GAD Municipales | J49: Régimen de GAD | K49: GAD y sus EP | L49: Marzo
A50: SG-030-2020-00001 | B50: GEL ALCOHOL ANTISEPTICO | C50: Bien | D50: GOBIERNO AUTONOMO DESCENTRALIZADO MUNICIPAL DEL CANTON CUENCA | E50: Azuay | F50: BIO CLEAN PRODUCTORA&DISTRIBUCIONES CIA.LTDA. | G50: 328.2 | H50: 0.0003282 | I50: GAD Municipales | J50: Régimen de GAD | K50: GAD y sus EP | L50: Marzo
A51: SG-030-2020-00004 | B51: MAQUINAS Y APARATOS PARA FILTRAR O DEPURAR DE GASES N.C.P.: FILTROS DE BOLSA, DE HUMO, DE PANTALLA, DE TAMBOR ROTATORIO, FILTROS INTERMITENTES, PURIFICADORES DE GAS, DEPURADORES QUIMICOS, DEPURADORES MECANICOS, ETC. | C51: Bien | D51: GOBIERNO AUTONOMO DESCENTRALIZADO MUNICIPAL DEL CANTON CUENCA | E51: Azuay | F51: AGROTA CIA. LTDA. | G51: 449 | H51: 0.000449 | I51: GAD Municipales | J51: Régimen de GAD | K51: GAD y sus EP | L51: Marzo
A52: SG-030-2020-00021 | B52: PRENDAS DE VESTIR PARA SEGURIDAD INDUSTRIAL | C52: Bien | D52: GOBIERNO AUTONOMO DESCENTRALIZADO MUNICIPAL DEL CANTON CUENCA | E52: Azuay | F52: JARAMILLO ARIAS ALEXIS ROBERTO | G52: 11520 | H52: 0.01152 | I52: GAD Municipales | J52: Régimen de GAD | K52: GAD y sus EP | L52: Mayo
A53: SG-030-2020-00012 | B53: SERVICIO DE FUMIGACIÓN CON TÉCNICOS CALIFICADOS | C53: Servicio | D53: GOBIERNO AUTONOMO DESCENTRALIZADO MUNICIPAL DEL CANTON CUENCA | E53: Azuay | F53: SERVICIO DE LIMPIEZA MALO PIEDRA CIA. LTDA. | G53: 3450 | H53: 0.00345 | I53: GAD Municipales | J53: Régimen de GAD | K53: GAD y sus EP | L53: Abril
A54: SG-030-2020-00022 | B54: INSUMOS PARA ANATOMIA PATOLOGICA | C54: Bien | D54: GOBIERNO AUTONOMO DESCENTRALIZADO MUNICIPAL DEL CANTON CUENCA | E54: Azuay | F54: SIMED S. A. | G54: 115000 | H54: 0.115 | I54: GAD Municipales | J54: Régimen de GAD | K54: GAD y sus EP | L54: Mayo
A55: SG-030-2020-00016 | B55: SERVICIO DE FUMIGACIÓN CON TÉCNICOS CALIFICADOS | C55: Servicio | D55: GOBIERNO AUTONOMO DESCENTRALIZADO MUNICIPAL DEL CANTON CUENCA | E55: Azuay | F55: MALO PIEDRA JUAN FERNANDO | G55: 5219.72 | H55: 0.00521972 | I55: GAD Municipales | J55: Régimen de GAD | K55: GAD y sus EP | L55: Mayo
A56: SG-030-2020-00002 | B56: JABON LIQUIDO DE FUNDA 1000ML | C56: Bien | D56: GOBIERNO AUTONOMO DESCENTRALIZADO MUNICIPAL DEL CANTON CUENCA | E56: Azuay | F56: GERARDO ORTIZ E HIJOS CIA. LTDA. | G56: 39.375 | H56: 3.9375e-05 | I56: GAD Municipales | J56: Régimen de GAD | K56: GAD y sus EP | L56: Marzo
A57: 101-AL-GADMG-2020-00023 | B57: ATUN | C57: Bien | D57: GOBIERNO AUTÓNOMO DESCENTRALIZADO MUNICIPAL DE GIRÓN | E57: Azuay | F57: NIEVES NIEVES JAVIER GERARDO | G57: 1050 | H57: 0.00105 | I57: GAD Municipales | J57: Régimen de GAD | K57: GAD y sus EP | L57: Julio
A58: 101-AL-GADMG-2020-00025 | B58: GUANTE PARA EL HOGAR Y LA INDUSTRIA EN CAUCHO | C58: Bien | D58: GOBIERNO AUTÓNOMO DESCENTRALIZADO MUNICIPAL DE GIRÓN | E58: Azuay | F58: CALLE BARROS MARLENE ELIZABETH | G58: 380 | H58: 0.00038 | I58: GAD Municipales | J58: Régimen de GAD | K58: GAD y sus EP | L58: Julio
A59: 101-AL-GADMG-2020-00003 | B59: DESINFECTANTE AMONIO CUATERNARIO GALON | C59: Bien | D59: GOBIERNO AUTÓNOMO DESCENTRALIZADO MUNICIPAL DE GIRÓN | E59: Azuay | F59: SACTA MALDONADO JULIO CESAR | G59: 75 | H59: 7.5e-05 | I59: GAD Municipales | J59: Régimen de GAD | K59: GAD y sus EP | L59: Abril
A60: 101-AL-GADMG-2020-00027 | B60: FUNDAS PLASTICAS PARA BASURA | C60: Bien | D60: GOBIERNO AUTÓNOMO DESCENTRALIZADO MUNICIPAL DE GIRÓN | E60: Azuay | F60: NIEVES NIEVES JAVIER GERARDO | G60: 248.42 | H60: 0.00024842 | I60: GAD Municipales | J60: Régimen de GAD | K60: GAD y sus EP | L60: Julio
A61: 101-AL-GADMG-2020-00001 | B61: TERMOMETRO DIGITALES | C61: Bien | D61: GOBIERNO AUTÓNOMO DESCENTRALIZADO MUNICIPAL DE GIRÓN | E61: Azuay | F61: SOLUCIONES INDUSTRIALES Y MEDICAS SOINMED CIA. LTDA. | G61: 330 | H61: 0.00033 | I61: GAD Municipales | J61: Régimen de GAD | K61: GAD y sus EP | L61: Abril
A62: 101-AL-GADMG-2020-00023 | B62: AVENA EN GRANO | C62: Bien | D62: GOBIERNO AUTÓNOMO DESCENTRALIZADO MUNICIPAL DE GIRÓN | E62: Azuay | F62: NIEVES NIEVES JAVIER GERARDO | G62: 450 | H62: 0.00045 | I62: GAD Municipales | J62: Régimen de GAD | K62: GAD y sus EP | L62: Julio
A63: 101-AL-GADMG-2020-00019 | B63: MASCARILLA | C63: Bien | D63: GOBIERNO AUTÓNOMO DESCENTRALIZADO MUNICIPAL DE GIRÓN | E63: Azuay | F63: CALLE BARROS MARLENE ELIZABETH | G63: 1000 | H63: 0.001 | I63: GAD Municipales | J63: Régimen de GAD | K63: GAD y sus EP | L63: Junio
A64: 101-AL-GADMG-2020-00011 | B64: ATOMIZADOR PLASTICO | C64: Bien | D64: GOBIERNO AUTÓNOMO DESCENTRALIZADO MUNICIPAL DE GIRÓN | E64: Azuay | F64: VILLAVICENCIO QUIZHPI DIANA XIMENA | G64: 25.5 | H64: 2.55e-05 | I64: GAD Municipales | J64: Régimen de GAD | K64: GAD y sus EP | L64: Mayo
A65: 101-AL-GADMG-2020-00012 | B65: BOMBAS ASPIRANTES O IMPELENTES PARA LIQUIDOS | C65: Bien | D65: GOBIERNO AUTÓNOMO DESCENTRALIZADO MUNICIPAL DE GIRÓN | E65: Azuay | F65: TRELLES TRELLES REBECA DALILA | G65: 660 | H65: 0.00066 | I65: GAD Municipales | J65: Régimen de GAD | K65: GAD y sus EP | L65: Mayo
A66: 101-AL-GADMG-2020-00002 | B66: ATOMIZADOR PLASTICO | C66: Bien | D66: GOBIERNO AUTÓNOMO DESCENTRALIZADO MUNICIPAL DE GIRÓN | E66: Azuay | F66: JERVES FONTANA CARLOS ANDRES | G66: 23.2 | H66: 2.32e-05 | I66: GAD Municipales | J66: Régimen de GAD | K66: GAD y sus EP | L66: Abril
A67: 101-AL-GADMG-2020-00019 | B67: OVEROL EN IMPERMEABLE | C67: Bien | D67: GOBIERNO AUTÓNOMO DESCENTRALIZADO MUNICIPAL DE GIRÓN | E67: Azuay | F67: CALLE BARROS MARLENE ELIZABETH | G67: 1066 | H67: =G67/1000000 -> 0.001066 | I67: GAD Municipales | J67: Régimen de GAD | K67: GAD y sus EP | L67: Junio
A68: 101-AL-GADMG-2020-00025 | B68: GUANTE ESPECIAL EN LATEX | C68: Bien | D68: GOBIERNO AUTÓNOMO DESCENTRALIZADO MUNICIPAL DE GIRÓN | E68: Azuay | F68: CALLE BARROS MARLENE ELIZABETH | G68: 1200 | H68: 0.0012 | I68: GAD Municipales | J68: Régimen de GAD | K68: GAD y sus EP | L68: Julio
A69: 101-AL-GADMG-2020-00005 | B69: MASCARILLAS DE PROTECCION | C69: Bien | D69: GOBIERNO AUTÓNOMO DESCENTRALIZADO MUNICIPAL DE GIRÓN | E69: Azuay | F69: FARMERGOD CL. | G69: 1017.8 | H69: 0.0010178 | I69: GAD Municipales | J69: Régimen de GAD | K69: GAD y sus EP | L69: Abril
A70: 101-AL-GADMG-2020-00026 | B70: FOSFORO ROJO | C70: Bien | D70: GOBIERNO AUTÓNOMO DESCENTRALIZADO MUNICIPAL DE GIRÓN | E70: Azuay | F70: SANCECI CIA. LTDA. | G70: 146.625 | H70: 0.000146625 | I70: GAD Municipales | J70: Régimen de GAD | K70: GAD y sus EP | L70: Julio
A71: 101-AL-GADMG-2020-00023 | B71: PAPEL HIGIENICO ESTANDAR DOBLE HOJA BLANCO 30 METROS | C71: Bien | D71: GOBIERNO AUTÓNOMO DESCENTRALIZADO MUNICIPAL DE GIRÓN | E71: Azuay | F71: NIEVES NIEVES JAVIER GERARDO | G71: 214.3 | H71: 0.0002143 | I71: GAD Municipales | J71: Régimen de GAD | K71: GAD y sus EP | L71: Julio
A72: 101-AL-GADMG-2020-00022 | B72: GEL ALCOHOL ANTISEPTICO | C72: Bien | D72: GOBIERNO AUTÓNOMO DESCENTRALIZADO MUNICIPAL DE GIRÓN | E72: Azuay | F72: ENCALADA PERALTA ELVIA MATILDE | G72: 750 | H72: 0.00075 | I72: GAD Municipales | J72: Régimen de GAD | K72: GAD y sus EP | L72: Julio
A73: 101-AL-GADMG-2020-00002 | B73: CLORO LIQUIDO AL 5 POR CIENTO, GALON | C73: Bien | D73: GOBIERNO AUTÓNOMO DESCENTRALIZADO MUNICIPAL DE GIRÓN | E73: Azuay | F73: JERVES FONTANA CARLOS ANDRES | G73: 1068.75 | H73: 0.00106875 | I73: GAD Municipales | J73: Régimen de GAD | K73: GAD y sus EP | L73: Abril
A74: 101-AL-GADMG-2020-00024 | B74: SAL CON ADITIVOS PARA CONSUMO HUMANO | C74: Bien | D74: GOBIERNO AUTÓNOMO DESCENTRALIZADO MUNICIPAL DE GIRÓN | E74: Azuay | F74: ORDOÑEZ PIEDRA ANGEL BOLIVAR | G74: 200 | H74: 0.0002 | I74: GAD Municipales | J74: Régimen de GAD | K74: GAD y sus EP | L74: Julio
A75: 101-AL-GADMG-2020-00024 | B75: FRIJOL BOLA ROJA | C75: Bien | D75: GOBIERNO AUTÓNOMO DESCENTRALIZADO MUNICIPAL DE GIRÓN | E75: Azuay | F75: ORDOÑEZ PIEDRA ANGEL BOLIVAR | G75: 810 | H75: 0.00081 | I75: GAD Municipales | J75: Régimen de GAD | K75: GAD y sus EP | L75: Julio
A76: 101-AL-GADMG-2020-00017 | B76: MASCARILLAS DE PROTECCION | C76: Bien | D76: GOBIERNO AUTÓNOMO DESCENTRALIZADO MUNICIPAL DE GIRÓN | E76: Azuay | F76: ENCALADA PERALTA ELVIA MATILDE | G76: 5500 | H76: 0.0055 | I76: GAD Municipales | J76: Régimen de GAD | K76: GAD y sus EP | L76: Junio
A77: 101-AL-GADMG-2020-00022 | B77: JABONCILLO | C77: Bien | D77: GOBIERNO AUTÓNOMO DESCENTRALIZADO MUNICIPAL DE GIRÓN | E77: Azuay | F77: ENCALADA PERALTA ELVIA MATILDE | G77: 585 | H77: 0.000585 | I77: GAD Municipales | J77: Régimen de GAD | K77: GAD y sus EP | L77: Julio
A78: 101-AL-GADMG-2020-00024 | B78: CONSERVAS DE SARDINAS | C78: Bien | D78: GOBIERNO AUTÓNOMO DESCENTRALIZADO MUNICIPAL DE GIRÓN | E78: Azuay | F78: ORDOÑEZ PIEDRA ANGEL BOLIVAR | G78: 700 | H78: 0.0007 | I78: GAD Municipales | J78: Régimen de GAD | K78: GAD y sus EP | L78: Julio
A79: 101-AL-GADMG-2020-00026 | B79: ARROZ DESCASCARADO | C79: Bien | D79: GOBIERNO AUTÓNOMO DESCENTRALIZADO MUNICIPAL DE GIRÓN | E79: Azuay | F79: SANCECI CIA. LTDA. | G79: 1914.6 | H79: 0.0019146 | I79: GAD Municipales | J79: Régimen de GAD | K79: GAD y sus EP | L79: Julio
A80: 101-AL-GADMG-2020-00018 | B80: RACIONES ALIMENTICIAS PREPARADAS PARA SITUACIONES DE EMERGENCIA | C80: Bien | D80: GOBIERNO AUTÓNOMO DESCENTRALIZADO MUNICIPAL DE GIRÓN | E80: Azuay | F80: ORDOÑEZ PIEDRA ANGEL BOLIVAR | G80: 2056.32 | H80: 0.00205632 | I80: GAD Municipales | J80: Régimen de GAD | K80: GAD y sus EP | L80: Junio
A81: 101-AL-GADMG-2020-00026 | B81: FIDEOS | C81: Bien | D81: GOBIERNO AUTÓNOMO DESCENTRALIZADO MUNICIPAL DE GIRÓN | E81: Azuay | F81: SANCECI CIA. LTDA. | G81: 345 | H81: 0.000345 | I81: GAD Municipales | J81: Régimen de GAD | K81: GAD y sus EP | L81: Julio
A82: 101-AL-GADMG-2020-00022 | B82: ALCOHOL ANTISEPTICO | C82: Bien | D82: GOBIERNO AUTÓNOMO DESCENTRALIZADO MUNICIPAL DE GIRÓN | E82: Azuay | F82: ENCALADA PERALTA ELVIA MATILDE | G82: 1045 | H82: 0.001045 | I82: GAD Municipales | J82: Régimen de GAD | K82: GAD y sus EP | L82: Julio
A83: 101-AL-GADMG-2020-00023 | B83: ACEITE DE SOYA (SOJA) EN BRUTO, SIN GOMA O NO | C83: Bien | D83: GOBIERNO AUTÓNOMO DESCENTRALIZADO MUNICIPAL DE GIRÓN | E83: Azuay | F83: NIEVES NIEVES JAVIER GERARDO | G83: 1600 | H83: 0.0016 | I83: GAD Municipales | J83: Régimen de GAD | K83: GAD y sus EP | L83: Julio
A84: 101-AL-GADMG-2020-00024 | B84: AZUCAR DE CANA REFINADA, EN ESTADO SOLIDO, SIN ADICION DE SAPORIZANTES NI COLORANTES | C84: Bien | D84: GOBIERNO AUTÓNOMO DESCENTRALIZADO MUNICIPAL DE GIRÓN | E84: Azuay | F84: ORDOÑEZ PIEDRA ANGEL BOLIVAR | G84: 670 | H84: 0.00067 | I84: GAD Municipales | J84: Régimen de GAD | K84: GAD y sus EP | L84: Julio
A85: 101-AL-GADMG-2020-00026 | B85: ACEITE DE SEMILLA DE GIRASOLAEN BRUTO | C85: Bien | D85: GOBIERNO AUTÓNOMO DESCENTRALIZADO MUNICIPAL DE GIRÓN | E85: Azuay | F85: SANCECI CIA. LTDA. | G85: 1200 | H85: 0.0012 | I85: GAD Municipales | J85: Régimen de GAD | K85: GAD y sus EP | L85: Julio
A86: 101-AL-GADMG-2020-00007 | B86: SERVICIOS COMERCIALES AL POR MAYOR PRESTADOS A COMISION O POR CONTRATO, DE PRODUCTOS COMESTIBLES N.C.P. | C86: Bien | D86: GOBIERNO AUTÓNOMO DESCENTRALIZADO MUNICIPAL DE GIRÓN | E86: Azuay | F86: ORDOÑEZ PIEDRA ANGEL BOLIVAR | G86: 11310.9 | H86: 0.0113109 | I86: GAD Municipales | J86: Régimen de GAD | K86: GAD y sus EP | L86: Mayo
A87: 101-AL-GADMG-2020-00018 | B87: SERVICIOS COMERCIALES AL POR MAYOR PRESTADOS A COMISION O POR CONTRATO, DE PRODUCTOS COMESTIBLES N.C.P. | C87: Bien | D87: GOBIERNO AUTÓNOMO DESCENTRALIZADO MUNICIPAL DE GIRÓN | E87: Azuay | F87: ORDOÑEZ PIEDRA ANGEL BOLIVAR | G87: 916.98 | H87: 0.00091698 | I87: GAD Municipales | J87: Régimen de GAD | K87: GAD y sus EP | L87: Junio
A88: 101-AL-GADMG-2020-00026 | B88: JABONCILLO | C88: Bien | D88: GOBIERNO AUTÓNOMO DESCENTRALIZADO MUNICIPAL DE GIRÓN | E88: Azuay | F88: SANCECI CIA. LTDA. | G88: 786.4597 | H88: 0.0007864597 | I88: GAD Municipales | J88: Régimen de GAD | K88: GAD y sus EP | L88: Julio
A89: 101-AL-GADMG-2020-00023 | B89: BANDAS, FORROS, FUNDAS, ARMAZONES, VISERAS Y BARBOQUEJOS PARA SOMBRERERIA | C89: Bien | D89: GOBIERNO AUTÓNOMO DESCENTRALIZADO MUNICIPAL DE GIRÓN | E89: Azuay | F89: NIEVES NIEVES JAVIER GERARDO | G89: 126.11 | H89: 0.00012611 | I89: GAD Municipales | J89: Régimen de GAD | K89: GAD y sus EP | L89: Julio
A90: 101-AL-GADMG-2020-00024 | B90: GELATINAS CON O SIN SABOR | C90: Bien | D90: GOBIERNO AUTÓNOMO DESCENTRALIZADO MUNICIPAL DE GIRÓN | E90: Azuay | F90: ORDOÑEZ PIEDRA ANGEL BOLIVAR | G90: 230 | H90: 0.00023 | I90: GAD Municipales | J90: Régimen de GAD | K90: GAD y sus EP | L90: Julio
A91: 101-AL-GADMG-2020-00024 | B91: JABON | C91: Bien | D91: GOBIERNO AUTÓNOMO DESCENTRALIZADO MUNICIPAL DE GIRÓN | E91: Azuay | F91: ORDOÑEZ PIEDRA ANGEL BOLIVAR | G91: 350 | H91: 0.00035 | I91: GAD Municipales | J91: Régimen de GAD | K91: GAD y sus EP | L91: Julio
A92: 101-AL-GADMG-2020-00025 | B92: BOTA EN CAUCHO | C92: Bien | D92: GOBIERNO AUTÓNOMO DESCENTRALIZADO MUNICIPAL DE GIRÓN | E92: Azuay | F92: CALLE BARROS MARLENE ELIZABETH | G92: 150 | H92: 0.00015 | I92: GAD Municipales | J92: Régimen de GAD | K92: GAD y sus EP | L92: Julio
A93: 101-AL-GADMG-2020-00008 | B93: BANDAS, FORROS, FUNDAS, ARMAZONES, VISERAS Y BARBOQUEJOS PARA SOMBRERERIA | C93: Bien | D93: GOBIERNO AUTÓNOMO DESCENTRALIZADO MUNICIPAL DE GIRÓN | E93: Azuay | F93: ORDOÑEZ PIEDRA ANGEL BOLIVAR | G93: 24.79 | H93: 2.479e-05 | I93: GAD Municipales | J93: Régimen de GAD | K93: GAD y sus EP | L93: Junio
A94: 101-AL-GADMG-2020-00025 | B94: CHALECO MULTIFUNCION CON CINTA RETROREFLECTIVA | C94: Bien | D94: GOBIERNO AUTÓNOMO DESCENTRALIZADO MUNICIPAL DE GIRÓN | E94: Azuay | F94: CALLE BARROS MARLENE ELIZABETH | G94: 150 | H94: 0.00015 | I94: GAD Municipales | J94: Régimen de GAD | K94: GAD y sus EP | L94: Julio
A95: 101-AL-GADMG-2020-00019 | B95: MACARILLA CARA COMPLETA | C95: Bien | D95: GOBIERNO AUTÓNOMO DESCENTRALIZADO MUNICIPAL DE GIRÓN | E95: Azuay | F95: CALLE BARROS MARLENE ELIZABETH | G95: 180 | H95: 0.00018 | I95: GAD Municipales | J95: Régimen de GAD | K95: GAD y sus EP | L95: Junio
A96: 101-AL-GADMG-2020-00009 | B96: DISPENSADOR DE GEL ALCOHOL | C96: Bien | D96: GOBIERNO AUTÓNOMO DESCENTRALIZADO MUNICIPAL DE GIRÓN | E96: Azuay | F96: JERVES FONTANA CARLOS ANDRES | G96: 220.92 | H96: 0.00022092 | I96: GAD Municipales | J96: Régimen de GAD | K96: GAD y sus EP | L96: Mayo
A97: 101-AL-GADMG-2020-00028 | B97: CONSERVAS DE SARDINAS | C97: Bien | D97: GOBIERNO AUTÓNOMO DESCENTRALIZADO MUNICIPAL DE GIRÓN | E97: Azuay | F97: ORDOÑEZ PIEDRA ANGEL BOLIVAR | G97: 700 | H97: 0.0007 | I97: GAD Municipales | J97: Régimen de GAD | K97: GAD y sus EP | L97: Julio
A98: 101-AL-GADMG-2020-00017 | B98: JABONCILLO | C98: Bien | D98: GOBIERNO AUTÓNOMO DESCENTRALIZADO MUNICIPAL DE GIRÓN | E98: Azuay | F98: ENCALADA PERALTA ELVIA MATILDE | G98: 2600 | H98: 0.0026 | I98: GAD Municipales | J98: Régimen de GAD | K98: GAD y sus EP | L98: Junio
A99: 101-AL-GADMG-2020-00027 | B99: SAL CON ADITIVOS PARA CONSUMO HUMANO | C99: Bien | D99: GOBIERNO AUTÓNOMO DESCENTRALIZADO MUNICIPAL DE GIRÓN | E99: Azuay | F99: NIEVES NIEVES JAVIER GERARDO | G99: 470 | H99: 0.00047 | I99: GAD Municipales | J99: Régimen de GAD | K99: GAD y sus EP | L99: Julio
A100: 101-AL-GADMG-2020-00021 | B100: GAFAS PROTECTORAS TRANSPARENTES | C100: Bien | D100: GOBIERNO AUTÓNOMO DESCENTRALIZADO MUNICIPAL DE GIRÓN | E100: Azuay | F100: ENCALADA PERALTA ELVIA MATILDE | G100: 78 | H100: 7.8e-05 | I100: GAD Municipales | J100: Régimen de GAD | K100: GAD y sus EP | L100: Julio
A101: 101-AL-GADMG-2020-00025 | B101: DELANTAL CON REPELENCIA AL AGUA | C101: Bien | D101: GOBIERNO AUTÓNOMO DESCENTRALIZADO MUNICIPAL DE GIRÓN | E101: Azuay | F101: CALLE BARROS MARLENE ELIZABETH | G101: 60 | H101: 6e-05 | I101: GAD Municipales | J101: Régimen de GAD | K101: GAD y sus EP | L101: Julio
A102: 101-AL-GADMG-2020-00021 | B102: OVEROL | C102: Bien | D102: GOBIERNO AUTÓNOMO DESCENTRALIZADO MUNICIPAL DE GIRÓN | E102: Azuay | F102: ENCALADA PERALTA ELVIA MATILDE | G102: 1900 | H102: 0.0019 | I102: GAD Municipales | J102: Régimen de GAD | K102: GAD y sus EP | L102: Julio
A103: 101-AL-GADMG-2020-00028 | B103: FRIJOL BOLA ROJA | C103: Bien | D103: GOBIERNO AUTÓNOMO DESCENTRALIZADO MUNICIPAL DE GIRÓN | E103: Azuay | F103: ORDOÑEZ PIEDRA ANGEL BOLIVAR | G103: 810 | H103: 0.00081 | I103: GAD Municipales | J103: Régimen de GAD | K103: GAD y sus EP | L103: Julio
A104: 101-AL-GADMG-2020-00004 | B104: ESTRUCTURAS METALICAS DE ALUMINIO PARA CARPAS: VARILLAS, POLOS, ESTACAS | C104: Bien | D104: GOBIERNO AUTÓNOMO DESCENTRALIZADO MUNICIPAL DE GIRÓN | E104: Azuay | F104: QUEZADA QUEZADA KARLA CRISTINA | G104: 2200 | H104: 0.0022 | I104: GAD Municipales | J104: Régimen de GAD | K104: GAD y sus EP | L104: Abril
A105: 101-AL-GADMG-2020-00021 | B105: BANDEJAS DE MESE | C105: Bien | D105: GOBIERNO AUTÓNOMO DESCENTRALIZADO MUNICIPAL DE GIRÓN | E105: Azuay | F105: ENCALADA PERALTA ELVIA MATILDE | G105: 126.36 | H105: 0.00012636 | I105: GAD Municipales | J105: Régimen de GAD | K105: GAD y sus EP | L105: Julio
A106: 101-AL-GADMG-2020-00019 | B106: PROTECTORES AUDITIVOS | C106: Bien | D106: GOBIERNO AUTÓNOMO DESCENTRALIZADO MUNICIPAL DE GIRÓN | E106: Azuay | F106: CALLE BARROS MARLENE ELIZABETH | G106: 80 | H106: 8e-05 | I106: GAD Municipales | J106: Régimen de GAD | K106: GAD y sus EP | L106: Junio
A107: 101-AL-GADMG-2020-00002 | B107: JABON LIQUIDO PARA RECARGAR GALON | C107: Bien | D107: GOBIERNO AUTÓNOMO DESCENTRALIZADO MUNICIPAL DE GIRÓN | E107: Azuay | F107: JERVES FONTANA CARLOS ANDRES | G107: 62.5 | H107: 6.25e-05 | I107: GAD Municipales | J107: Régimen de GAD | K107: GAD y sus EP | L107: Abril
A108: 101-AL-GADMG-2020-00023 | B108: GALLETA DULCE | C108: Bien | D108: GOBIERNO AUTÓNOMO DESCENTRALIZADO MUNICIPAL DE GIRÓN | E108: Azuay | F108: NIEVES NIEVES JAVIER GERARDO | G108: 647.3 | H108: 0.0006473 | I108: GAD Municipales | J108: Régimen de GAD | K108: GAD y sus EP | L108: Julio
A109: 101-AL-GADMG-2020-00021 | B109: ATOMIZADOR PLASTICO | C109: Bien | D109: GOBIERNO AUTÓNOMO DESCENTRALIZADO MUNICIPAL DE GIRÓN | E109: Azuay | F109: ENCALADA PERALTA ELVIA MATILDE | G109: 38.7 | H109: 3.87e-05 | I109: GAD Municipales | J109: Régimen de GAD | K109: GAD y sus EP | L109: Julio
A110: 101-AL-GADMG-2020-00024 | B110: FOSFORO | C110: Bien | D110: GOBIERNO AUTÓNOMO DESCENTRALIZADO MUNICIPAL DE GIRÓN | E110: Azuay | F110: ORDOÑEZ PIEDRA ANGEL BOLIVAR | G110: 46 | H110: 4.6e-05 | I110: GAD Municipales | J110: Régimen de GAD | K110: GAD y sus EP | L110: Julio
A111: 101-AL-GADMG-2020-00023 | B111: FIDEOS | C111: Bien | D111: GOBIERNO AUTÓNOMO DESCENTRALIZADO MUNICIPAL DE GIRÓN | E111: Azuay | F111: NIEVES NIEVES JAVIER GERARDO | G111: 550 | H111: 0.00055 | I111: GAD Municipales | J111: Régimen de GAD | K111: GAD y sus EP | L111: Julio
A112: 101-AL-GADMG-2020-00017 | B112: ALCOHOL ANTISEPTICO | C112: Bien | D112: GOBIERNO AUTÓNOMO DESCENTRALIZADO MUNICIPAL DE GIRÓN | E112: Azuay | F112: ENCALADA PERALTA ELVIA MATILDE | G112: 4400 | H112: 0.0044 | I112: GAD Municipales | J112: Régimen de GAD | K112: GAD y sus EP | L112: Junio
A113: 101-AL-GADMG-2020-00025 | B113: MONOGAFA PARA SOLVENTES ORGANICOS O DETERGENTES AMONIACOS Y ALCALINOS | C113: Bien | D113: GOBIERNO AUTÓNOMO DESCENTRALIZADO MUNICIPAL DE GIRÓN | E113: Azuay | F113: CALLE BARROS MARLENE ELIZABETH | G113: 400 | H113: 0.0004 | I113: GAD Municipales | J113: Régimen de GAD | K113: GAD y sus EP | L113: Julio
A114: 101-AL-GADMG-2020-00021 | B114: OVEROL EN IMPERMEABLE | C114: Bien | D114: GOBIERNO AUTÓNOMO DESCENTRALIZADO MUNICIPAL DE GIRÓN | E114: Azuay | F114: ENCALADA PERALTA ELVIA MATILDE | G114: 4200 | H114: 0.0042 | I114: GAD Municipales | J114: Régimen de GAD | K114: GAD y sus EP | L114: Julio
A115: 101-AL-GADMG-2020-00025 | B115: TAPONES | C115: Bien | D115: GOBIERNO AUTÓNOMO DESCENTRALIZADO MUNICIPAL DE GIRÓN | E115: Azuay | F115: CALLE BARROS MARLENE ELIZABETH | G115: 96 | H115: 9.6e-05 | I115: GAD Municipales | J115: Régimen de GAD | K115: GAD y sus EP | L115: Julio
A116: 101-AL-GADMG-2020-00024 | B116: ARROZ DESCASCARADO | C116: Bien | D116: GOBIERNO AUTÓNOMO DESCENTRALIZADO MUNICIPAL DE GIRÓN | E116: Azuay | F116: ORDOÑEZ PIEDRA ANGEL BOLIVAR | G116: 1365 | H116: 0.001365 | I116: GAD Municipales | J116: Régimen de GAD | K116: GAD y sus EP | L116: Julio
A117: 101-AL-GADMG-2020-00009 | B117: ALCOHOL ANTISEPTICO | C117: Bien | D117: GOBIERNO AUTÓNOMO DESCENTRALIZADO MUNICIPAL DE GIRÓN | E117: Azuay | F117: JERVES FONTANA CARLOS ANDRES | G117: 180 | H117: 0.00018 | I117: GAD Municipales | J117: Régimen de GAD | K117: GAD y sus EP | L117: Mayo
A118: 101-AL-GADMG-2020-00027 | B118: LENTEJA | C118: Bien | D118: GOBIERNO AUTÓNOMO DESCENTRALIZADO MUNICIPAL DE GIRÓN | E118: Azuay | F118: NIEVES NIEVES JAVIER GERARDO | G118: 1200 | H118: 0.0012 | I118: GAD Municipales | J118: Régimen de GAD | K118: GAD y sus EP | L118: Julio
A119: 101-AL-GADMG-2020-00013 | B119: INSTRUMENTOS Y APARATOS DE MEDICION Y DIAGNOSTICO MEDICO Y OTROS | C119: Bien | D119: GOBIERNO AUTÓNOMO DESCENTRALIZADO MUNICIPAL DE GIRÓN | E119: Azuay | F119: RECOR DENTAL Y QUIMEDIC S.A. | G119: 3880 | H119: 0.00388 | I119: GAD Municipales | J119: Régimen de GAD | K119: GAD y sus EP | L119: Mayo
A120: 101-AL-GADMG-2020-00024 | B120: LENTEJA | C120: Bien | D120: GOBIERNO AUTÓNOMO DESCENTRALIZADO MUNICIPAL DE GIRÓN | E120: Azuay | F120: ORDOÑEZ PIEDRA ANGEL BOLIVAR | G120: 590 | H120: 0.00059 | I120: GAD Municipales | J120: Régimen de GAD | K120: GAD y sus EP | L120: Julio
A121: 101-AL-GADMG-2020-00009 | B121: GEL ALCOHOL ANTISEPTICO | C121: Bien | D121: GOBIERNO AUTÓNOMO DESCENTRALIZADO MUNICIPAL DE GIRÓN | E121: Azuay | F121: JERVES FONTANA CARLOS ANDRES | G121: 136.88 | H121: 0.00013688 | I121: GAD Municipales | J121: Régimen de GAD | K121: GAD y sus EP | L121: Mayo
A122: 101-AL-GADMG-2020-00015 | B122: TERMOMETRO DIGITALES | C122: Bien | D122: GOBIERNO AUTÓNOMO DESCENTRALIZADO MUNICIPAL DE GIRÓN | E122: Azuay | F122: SOLUCIONES INDUSTRIALES Y MEDICAS SOINMED CIA. LTDA. | G122: 660 | H122: 0.00066 | I122: GAD Municipales | J122: Régimen de GAD | K122: GAD y sus EP | L122: Mayo
A123: 101-AL-GADMG-2020-00016 | B123: SERVICIOS COMERCIALES AL POR MAYOR PRESTADOS A COMISION O POR CONTRATO, DE PRODUCTOS COMESTIBLES N.C.P. | C123: Bien | D123: GOBIERNO AUTÓNOMO DESCENTRALIZADO MUNICIPAL DE GIRÓN | E123: Azuay | F123: NIEVES NIEVES JAVIER GERARDO | G123: 44689.88 | H123: 0.04468988 | I123: GAD Municipales | J123: Régimen de GAD | K123: GAD y sus EP | L123: Junio
A124: 101-AL-GADMG-2020-00011 | B124: JABON LIQUIDO PARA RECARGAR GALON | C124: Bien | D124: GOBIERNO AUTÓNOMO DESCENTRALIZADO MUNICIPAL DE GIRÓN | E124: Azuay | F124: VILLAVICENCIO QUIZHPI DIANA XIMENA | G124: 30 | H124: 3e-05 | I124: GAD Municipales | J124: Régimen de GAD | K124: GAD y sus EP | L124: Mayo
A125: 101-AL-GADMG-2020-00014 | B125: SERVICIO DE DESINFECCIÓN DE VIRUS, ESPORAS | C125: Servicio | D125: GOBIERNO AUTÓNOMO DESCENTRALIZADO MUNICIPAL DE GIRÓN | E125: Azuay | F125: PULLA TENEMAZA PAÚL ESTEBAN | G125: 3600 | H125: 0.0036 | I125: GAD Municipales | J125: Régimen de GAD | K125: GAD y sus EP | L125: Julio
A126: 101-AL-GADMG-2020-00025 | B126: MASCARILLA CON RESPIRADOR | C126: Bien | D126: GOBIERNO AUTÓNOMO DESCENTRALIZADO MUNICIPAL DE GIRÓN | E126: Azuay | F126: CALLE BARROS MARLENE ELIZABETH | G126: 560 | H126: 0.00056 | I126: GAD Municipales | J126: Régimen de GAD | K126: GAD y sus EP | L126: Julio
A127: 101-A-GADMG-2020-00003 | B127: RACIÓN ALIMENTICIA EQUIVALENTE AL AGREGADO TERRITORIAL 02 (ÁMBITO GEOGRÁFICO GENERAL: AZUAY, CAÑAR, MORONA SANTIAGO) | C127: Bien | D127: GOBIERNO AUTÓNOMO DESCENTRALIZADO MUNICIPAL DE GIRÓN | E127: Azuay | F127: ORDOÑEZ PIEDRA ANGEL BOLIVAR | G127: 7418.4 | H127: 0.0074184 | I127: GAD Municipales | J127: Régimen de GAD | K127: GAD y sus EP | L127: Marzo
A128: 101-AL-GADMG-2020-00007 | B128: FUNDAS PLASTICAS PARA BASURA | C128: Bien | D128: GOBIERNO AUTÓNOMO DESCENTRALIZADO MUNICIPAL DE GIRÓN | E128: Azuay | F128: ORDOÑEZ PIEDRA ANGEL BOLIVAR | G128: 175.06 | H128: 0.00017506 | I128: GAD Municipales | J128: Régimen de GAD | K128: GAD y sus EP | L128: Mayo
A129: 101-AL-GADMG-2020-00021 | B129: GUANTE DE TRABAJO EN NITRILO | C129: Bien | D129: GOBIERNO AUTÓNOMO DESCENTRALIZADO MUNICIPAL DE GIRÓN | E129: Azuay | F129: ENCALADA PERALTA ELVIA MATILDE | G129: 1075 | H129: 0.001075 | I129: GAD Municipales | J129: Régimen de GAD | K129: GAD y sus EP | L129: Julio
A130: 101-AL-GADMG-2020-00025 | B130: DISPENSADOR DE GEL ALCOHOL | C130: Bien | D130: GOBIERNO AUTÓNOMO DESCENTRALIZADO MUNICIPAL DE GIRÓN | E130: Azuay | F130: CALLE BARROS MARLENE ELIZABETH | G130: 208 | H130: 0.000208 | I130: GAD Municipales | J130: Régimen de GAD | K130: GAD y sus EP | L130: Julio
A131: 101-AL-GADMG-2020-00006 | B131: OVEROL EN IMPERMEABLE | C131: Bien | D131: GOBIERNO AUTÓNOMO DESCENTRALIZADO MUNICIPAL DE GIRÓN | E131: Azuay | F131: SOLUCIONES INTEGRALES DE GERENCIA DE RIESGOS C.A. SOINGER | G131: 1743 | H131: =G131/1000000 -> 0.001743 | I131: GAD Municipales | J131: Régimen de GAD | K131: GAD y sus EP | L131: Mayo
A132: 101-AL-GADMG-2020-00027 | B132: AVENA EN GRANO | C132: Bien | D132: GOBIERNO AUTÓNOMO DESCENTRALIZADO MUNICIPAL DE GIRÓN | E132: Azuay | F132: NIEVES NIEVES JAVIER GERARDO | G132: 900 | H132: 0.0009 | I132: GAD Municipales | J132: Régimen de GAD | K132: GAD y sus EP | L132: Julio
A133: 101-AL-GADMG-2020-00017 | B133: GEL ALCOHOL ANTISEPTICO | C133: Bien | D133: GOBIERNO AUTÓNOMO DESCENTRALIZADO MUNICIPAL DE GIRÓN | E133: Azuay | F133: ENCALADA PERALTA ELVIA MATILDE | G133: 3000 | H133: 0.003 | I133: GAD Municipales | J133: Régimen de GAD | K133: GAD y sus EP | L133: Junio
A134: 101-AL-GADMG-2020-00023 | B134: COCOA | C134: Bien | D134: GOBIERNO AUTÓNOMO DESCENTRALIZADO MUNICIPAL DE GIRÓN | E134: Azuay | F134: NIEVES NIEVES JAVIER GERARDO | G134: 401.8 | H134: 0.0004018 | I134: GAD Municipales | J134: Régimen de GAD | K134: GAD y sus EP | L134: Julio
A135: 101-AL-GADMG-2020-00008 | B135: SERVICIOS COMERCIALES AL POR MAYOR PRESTADOS A COMISION O POR CONTRATO, DE PRODUCTOS COMESTIBLES N.C.P. | C135: Bien | D135: GOBIERNO AUTÓNOMO DESCENTRALIZADO MUNICIPAL DE GIRÓN | E135: Azuay | F135: ORDOÑEZ PIEDRA ANGEL BOLIVAR | G135: 3934.32 | H135: 0.00393432 | I135: GAD Municipales | J135: Régimen de GAD | K135: GAD y sus EP | L135: Junio
A136: 101-AL-GADMG-2020-00002 | B136: ALCOHOL ANTISEPTICO GALON | C136: Bien | D136: GOBIERNO AUTÓNOMO DESCENTRALIZADO MUNICIPAL DE GIRÓN | E136: Azuay | F136: JERVES FONTANA CARLOS ANDRES | G136: 120 | H136: 0.00012 | I136: GAD Municipales | J136: Régimen de GAD | K136: GAD y sus EP | L136: Abril
A137: 101-AL-GADMG-2020-00026 | B137: AZUCAR DE CANA REFINADA, EN ESTADO SOLIDO, SIN ADICION DE SAPORIZANTES NI COLORANTES | C137: Bien | D137: GOBIERNO AUTÓNOMO DESCENTRALIZADO MUNICIPAL DE GIRÓN | E137: Azuay | F137: SANCECI CIA. LTDA. | G137: 679.9 | H137: 0.0006799 | I137: GAD Municipales | J137: Régimen de GAD | K137: GAD y sus EP | L137: Julio
A138: 101-AL-GADMG-2020-00025 | B138: DISPENSADOR DE PAPEL TOALLA | C138: Bien | D138: GOBIERNO AUTÓNOMO DESCENTRALIZADO MUNICIPAL DE GIRÓN | E138: Azuay | F138: CALLE BARROS MARLENE ELIZABETH | G138: 300 | H138: 0.0003 | I138: GAD Municipales | J138: Régimen de GAD | K138: GAD y sus EP | L138: Julio
A139: 101-AL-GADMG-2020-00026 | B139: PAPEL HIGIENICO ESTANDAR DOBLE HOJA BLANCO 30 METROS | C139: Bien | D139: GOBIERNO AUTÓNOMO DESCENTRALIZADO MUNICIPAL DE GIRÓN | E139: Azuay | F139: SANCECI CIA. LTDA. | G139: 210.9 | H139: 0.0002109 | I139: GAD Municipales | J139: Régimen de GAD | K139: GAD y sus EP | L139: Julio
A140: 101-AL-GADMG-2020-00011 | B140: DESINFECTANTE AMONIO CUATERNARIO | C140: Bien | D140: GOBIERNO AUTÓNOMO DESCENTRALIZADO MUNICIPAL DE GIRÓN | E140: Azuay | F140: VILLAVICENCIO QUIZHPI DIANA XIMENA | G140: 810 | H140: 0.00081 | I140: GAD Municipales | J140: Régimen de GAD | K140: GAD y sus EP | L140: Mayo
A141: 101-AL-GADMG-2020-00020 | B141: VISOR UV | C141: Bien | D141: GOBIERNO AUTÓNOMO DESCENTRALIZADO MUNICIPAL DE GIRÓN | E141: Azuay | F141: PALACIOS BOJORQUEZ ANA FRANCISCA | G141: 1176 | H141: 0.001176 | I141: GAD Municipales | J141: Régimen de GAD | K141: GAD y sus EP | L141: Junio
A142: 101-AL-GADMG-2020-00027 | B142: JABON EN BARRA 200 G | C142: Bien | D142: GOBIERNO AUTÓNOMO DESCENTRALIZADO MUNICIPAL DE GIRÓN | E142: Azuay | F142: NIEVES NIEVES JAVIER GERARDO | G142: 357.1 | H142: 0.0003571 | I142: GAD Municipales | J142: Régimen de GAD | K142: GAD y sus EP | L142: Julio
A143: 101-AL-GADMG-2020-00019 | B143: GUANTE ESPECIAL EN LATEX | C143: Bien | D143: GOBIERNO AUTÓNOMO DESCENTRALIZADO MUNICIPAL DE GIRÓN | E143: Azuay | F143: CALLE BARROS MARLENE ELIZABETH | G143: 65 | H143: 6.5e-05 | I143: GAD Municipales | J143: Régimen de GAD | K143: GAD y sus EP | L143: Junio
A144: 101-AL-GADMG-2020-00010 | B144: BOMBAS CENTRIFUGAS PARA LIQUIDOS | C144: Bien | D144: GOBIERNO AUTÓNOMO DESCENTRALIZADO MUNICIPAL DE GIRÓN | E144: Azuay | F144: FLORES HIDALGO MARIA TERESA | G144: 325 | H144: 0.000325 | I144: GAD Municipales | J144: Régimen de GAD | K144: GAD y sus EP | L144: Mayo
A145: 101-AL-GADMG-2020-00007 | B145: JABONCILLO | C145: Bien | D145: GOBIERNO AUTÓNOMO DESCENTRALIZADO MUNICIPAL DE GIRÓN | E145: Azuay | F145: ORDOÑEZ PIEDRA ANGEL BOLIVAR | G145: 401.7 | H145: 0.0004017 | I145: GAD Municipales | J145: Régimen de GAD | K145: GAD y sus EP | L145: Mayo
A146: 101-AL-GADMG-2020-00003 | B146: GEL ALCOHOL ANTISEPTICO | C146: Bien | D146: GOBIERNO AUTÓNOMO DESCENTRALIZADO MUNICIPAL DE GIRÓN | E146: Azuay | F146: SACTA MALDONADO JULIO CESAR | G146: 340 | H146: 0.00034 | I146: GAD Municipales | J146: Régimen de GAD | K146: GAD y sus EP | L146: Abril
A147: 0011-2020-GADMCG-A-00002 | B147: SERVICIOS COMERCIALES AL POR MENOR DE PRODUCTOS DE LIMPIEZA EN TIENDAS NO ESPECIALIZADAS | C147: Bien | D147: GOBIERNO AUTONOMO DESCENTRALIZADO MUNICIPAL DEL CANTON GUALACEO | E147: Azuay | F147: GUNCAY BUSTOS AMANDA LISSETH | G147: 5580.36 | H147: 0.00558036 | I147: GAD Municipales | J147: Régimen de GAD | K147: GAD y sus EP | L147: Junio
A148: 0011-2020-GADMCG-A-00006 | B148: PRENDAS DE VESTIR PARA SEGURIDAD INDUSTRIAL | C148: Bien | D148: GOBIERNO AUTONOMO DESCENTRALIZADO MUNICIPAL DEL CANTON GUALACEO | E148: Azuay | F148: MAZZA GARCIA YESSENIA KARINA | G148: 3813.5 | H148: 0.0038135 | I148: GAD Municipales | J148: Régimen de GAD | K148: GAD y sus EP | L148: Junio
A149: 0011-2020-GADMCG-A-00003 | B149: PRENDAS DE VESTIR PARA SEGURIDAD INDUSTRIAL | C149: Bien | D149: GOBIERNO AUTONOMO DESCENTRALIZADO MUNICIPAL DEL CANTON GUALACEO | E149: Azuay | F149: VERDUGO SANMARTIN LUIS GEOVANNY | G149: 1065 | H149: 0.001065 | I149: GAD Municipales | J149: Régimen de GAD | K149: GAD y sus EP | L149: Abril
A150: 0011-2020-GADMCG-A-00008 | B150: PRENDAS DE VESTIR PARA SEGURIDAD INDUSTRIAL | C150: Bien | D150: GOBIERNO AUTONOMO DESCENTRALIZADO MUNICIPAL DEL CANTON GUALACEO | E150: Azuay | F150: PIÑA CENTENO CAROL VIVIANA | G150: 2010 | H150: 0.00201 | I150: GAD Municipales | J150: Régimen de GAD | K150: GAD y sus EP | L150: Junio
A151: 0011-2020-GADMCG-A-00004 | B151: PRENDAS DE VESTIR PARA SEGURIDAD INDUSTRIAL | C151: Bien | D151: GOBIERNO AUTONOMO DESCENTRALIZADO MUNICIPAL DEL CANTON GUALACEO | E151: Azuay | F151: PICHUCHO AGUIRRE CARLOS FERNANDO | G151: 810 | H151: 0.00081 | I151: GAD Municipales | J151: Régimen de GAD | K151: GAD y sus EP | L151: Junio
A152: 0011-2020-GADMCG-A-00001 | B152: INSTRUMENTOS Y APARATOS DE MEDICION Y DIAGNOSTICO MEDICO Y OTROS | C152: Bien | D152: GOBIERNO AUTONOMO DESCENTRALIZADO MUNICIPAL DEL CANTON GUALACEO | E152: Azuay | F152: AVILA VASQUEZ JUAN PABLO | G152: 894 | H152: 0.000894 | I152: GAD Municipales | J152: Régimen de GAD | K152: GAD y sus EP | L152: Junio
A153: 0011-2020-GADMCG-A-00007 | B153: PRENDAS DE VESTIR PARA SEGURIDAD INDUSTRIAL | C153: Bien | D153: GOBIERNO AUTONOMO DESCENTRALIZADO MUNICIPAL DEL CANTON GUALACEO | E153: Azuay | F153: ALVAREZ DUCHIMAZA MIGUEL RUFINO | G153: 1930.94 | H153: 0.00193094 | I153: GAD Municipales | J153: Régimen de GAD | K153: GAD y sus EP | L153: Junio
A154: RA-2020-024-AGADMP-00005 | B154: BANDEJAS LARGAS | C154: Bien | D154: GOBIERNO AUTÓNOMO DESCENTRALIZADO MUNICIPAL DEL CANTÓN PAUTE | E154: Azuay | F154: VASQUEZ VILLAVICENCIO CARLOS ALFONSO | G154: 750 | H154: 0.00075 | I154: GAD Municipales | J154: Régimen de GAD | K154: GAD y sus EP | L154: Julio
A155: RA-2020-024-AGADMP-00001 | B155: SERVICIOS COMERCIALES AL POR MAYOR, EXCEPTO LOS PRESTADOS A COMISION O POR CONTRATO, DE MATERIAS PRIMAS AGRICOLAS N.C.P., MATERIAS PRIMAS VEGETALES | C155: Bien | D155: GOBIERNO AUTÓNOMO DESCENTRALIZADO MUNICIPAL DEL CANTÓN PAUTE | E155: Azuay | F155: RIERA LAZO MARIA ELOISA | G155: 7080 | H155: 0.00708 | I155: GAD Municipales | J155: Régimen de GAD | K155: GAD y sus EP | L155: Julio
A156: RA-2020-024-AGADMP-00007 | B156: TERMOMETRO DIGITALES | C156: Bien | D156: GOBIERNO AUTÓNOMO DESCENTRALIZADO MUNICIPAL DEL CANTÓN PAUTE | E156: Azuay | F156: GOMEZ ZUÑIGA JESSICA PATRICIA | G156: 950 | H156: 0.00095 | I156: GAD Municipales | J156: Régimen de GAD | K156: GAD y sus EP | L156: Julio
A157: RA-2020-024-AGADMP-00004 | B157: INSUMOS DE USO GENERAL | C157: Bien | D157: GOBIERNO AUTÓNOMO DESCENTRALIZADO MUNICIPAL DEL CANTÓN PAUTE | E157: Azuay | F157: ULLOA CABRERA MARIA ISABEL | G157: 6955 | H157: 0.006955 | I157: GAD Municipales | J157: Régimen de GAD | K157: GAD y sus EP | L157: Julio
A158: RA-2020-024-AGADMP-00003 | B158: SERVICIOS COMERCIALES AL POR MENOR DE PRODUCTOS COMESTIBLES N.C.P. EN TIENDAS NO ESPECIALIZADAS | C158: Bien | D158: GOBIERNO AUTÓNOMO DESCENTRALIZADO MUNICIPAL DEL CANTÓN PAUTE | E158: Azuay | F158: MONJE TACURI GLORIA | G158: 30900.5 | H158: 0.0309005 | I158: GAD Municipales | J158: Régimen de GAD | K158: GAD y sus EP | L158: Julio
A159: RA-2020-024-AGADMP-00006 | B159: INSUMOS DE USO GENERAL | C159: Bien | D159: GOBIERNO AUTÓNOMO DESCENTRALIZADO MUNICIPAL DEL CANTÓN PAUTE | E159: Azuay | F159: CALLE MEJIA LUIS EUGENIO | G159: 7250 | H159: 0.00725 | I159: GAD Municipales | J159: Régimen de GAD | K159: GAD y sus EP | L159: Julio
A160: RA-2020-024-AGADMP-00002 | B160: SERVICIOS COMERCIALES AL POR MAYOR, EXCEPTO LOS PRESTADOS A COMISION O POR CONTRATO, DE MATERIAS PRIMAS AGRICOLAS N.C.P., MATERIAS PRIMAS VEGETALES | C160: Bien | D160: GOBIERNO AUTÓNOMO DESCENTRALIZADO MUNICIPAL DEL CANTÓN PAUTE | E160: Azuay | F160: RIERA LAZO MARIA ELOISA | G160: 20000 | H160: 0.02 | I160: GAD Municipales | J160: Régimen de GAD | K160: GAD y sus EP | L160: Mayo
A161: 002-20202-00015 | B161: GUANTE DE TRABAJO EN NITRILO | C161: Bien | D161: MUNICIPALIDAD DE SANTA ISABEL | E161: Azuay | F161: MOROCHO DURAN RUBIA ARGENTINA | G161: 1025 | H161: 0.001025 | I161: GAD Municipales | J161: Régimen de GAD | K161: GAD y sus EP | L161: Junio
A162: 002-20202-00007 | B162: PROTECTOR VISUAL | C162: Bien | D162: MUNICIPALIDAD DE SANTA ISABEL | E162: Azuay | F162: FIGUEROA ESPINOZACRISTIAN PAUL | G162: 1290 | H162: 0.00129 | I162: GAD Municipales | J162: Régimen de GAD | K162: GAD y sus EP | L162: Mayo
A163: 002-20202-00019 | B163: GEL ALCOHOL ANTISEPTICO GALON | C163: Bien | D163: MUNICIPALIDAD DE SANTA ISABEL | E163: Azuay | F163: ALVAREZ CONDO JUAN PATRICIO | G163: 215 | H163: 0.000215 | I163: GAD Municipales | J163: Régimen de GAD | K163: GAD y sus EP | L163: Junio
A164: 002-20202-00019 | B164: MASCARILLAS DE PROTECCION | C164: Bien | D164: MUNICIPALIDAD DE SANTA ISABEL | E164: Azuay | F164: ALVAREZ CONDO JUAN PATRICIO | G164: 775 | H164: 0.000775 | I164: GAD Municipales | J164: Régimen de GAD | K164: GAD y sus EP | L164: Junio
A165: 002-20202-00019 | B165: GAFAS PROTECTORAS TRANSPARENTES | C165: Bien | D165: MUNICIPALIDAD DE SANTA ISABEL | E165: Azuay | F165: ALVAREZ CONDO JUAN PATRICIO | G165: 216 | H165: 0.000216 | I165: GAD Municipales | J165: Régimen de GAD | K165: GAD y sus EP | L165: Junio
A166: 002-20202-00006 | B166: ALCOHOL ANTISEPTICO LITRO | C166: Bien | D166: MUNICIPALIDAD DE SANTA ISABEL | E166: Azuay | F166: CORNEJO RIERA EDWIN FABIAN | G166: 4 | H166: 4e-06 | I166: GAD Municipales | J166: Régimen de GAD | K166: GAD y sus EP | L166: Mayo
A167: 002-20202-00009 | B167: BOLSOS DE MANO | C167: Bien | D167: MUNICIPALIDAD DE SANTA ISABEL | E167: Azuay | F167: ASTUDILLO MARTINEZ CECILIA MARGARETH | G167: 4750 | H167: 0.00475 | I167: GAD Municipales | J167: Régimen de GAD | K167: GAD y sus EP | L167: Mayo
A168: 002-20202-00016 | B168: CONJUNTO IMPERMEABLE EN PVC | C168: Bien | D168: MUNICIPALIDAD DE SANTA ISABEL | E168: Azuay | F168: UGUÑA DURÁN PEDRO ENRIQUE | G168: 174.109 | H168: 0.000174109 | I168: GAD Municipales | J168: Régimen de GAD | K168: GAD y sus EP | L168: Junio
A169: 002-20202-00006 | B169: BOMBA MANUAL DE MOCHILA | C169: Bien | D169: MUNICIPALIDAD DE SANTA ISABEL | E169: Azuay | F169: CORNEJO RIERA EDWIN FABIAN | G169: 92 | H169: 9.2e-05 | I169: GAD Municipales | J169: Régimen de GAD | K169: GAD y sus EP | L169: Mayo
A170: 002-20202-00003 | B170: COLCHONES DE CAUCHO O MATERIALES PLASTICOS ESPONJOSOS O CELULARES: ARTICULOS DE CAMAS, DE CAUCHO CELULAR O PLASTICO, RECUBIERTOS O NO, | C170: Bien | D170: MUNICIPALIDAD DE SANTA ISABEL | E170: Azuay | F170: AGUIRRE DELGADO LUCIO ARMANDO | G170: 39.2856 | H170: 3.92856e-05 | I170: GAD Municipales | J170: Régimen de GAD | K170: GAD y sus EP | L170: Mayo
A171: 002-20202-00018 | B171: SERVICIOS COMERCIALES AL POR MENOR DE MOTOCICLETAS | C171: Bien | D171: MUNICIPALIDAD DE SANTA ISABEL | E171: Azuay | F171: INDUSTRIAS MOTORIZADAS INDUMOT SA | G171: 7319.64 | H171: 0.00731964 | I171: GAD Municipales | J171: Régimen de GAD | K171: GAD y sus EP | L171: Junio
A172: 002-20202-00014 | B172: BOMBA MANUAL DE MOCHILA | C172: Bien | D172: MUNICIPALIDAD DE SANTA ISABEL | E172: Azuay | F172: ALVEAR MOROCHO CARLOS ANDRES | G172: 200 | H172: 0.0002 | I172: GAD Municipales | J172: Régimen de GAD | K172: GAD y sus EP | L172: Junio
A173: 002-20202-00020 | B173: GUANTE DE TRABAJO EN NITRILO | C173: Bien | D173: MUNICIPALIDAD DE SANTA ISABEL | E173: Azuay | F173: PROTESEG-SEGURIDAD CIA LTDA | G173: 360 | H173: 0.00036 | I173: GAD Municipales | J173: Régimen de GAD | K173: GAD y sus EP | L173: Junio
A174: 002-20202-00011 | B174: DISPENSADOR DE GEL ALCOHOL | C174: Bien | D174: MUNICIPALIDAD DE SANTA ISABEL | E174: Azuay | F174: VIVAR REINOSO JULIA JENNY | G174: 339.04 | H174: 0.00033904 | I174: GAD Municipales | J174: Régimen de GAD | K174: GAD y sus EP | L174: Mayo
A175: 002-20202-00011 | B175: TOALLAS PARA MANOS Z | C175: Bien | D175: MUNICIPALIDAD DE SANTA ISABEL | E175: Azuay | F175: VIVAR REINOSO JULIA JENNY | G175: 278.4 | H175: 0.0002784 | I175: GAD Municipales | J175: Régimen de GAD | K175: GAD y sus EP | L175: Mayo
A176: 002-20202-00019 | B176: GUANTE DE TRABAJO EN NITRILO | C176: Bien | D176: MUNICIPALIDAD DE SANTA ISABEL | E176: Azuay | F176: ALVAREZ CONDO JUAN PATRICIO | G176: 1000 | H176: 0.001 | I176: GAD Municipales | J176: Régimen de GAD | K176: GAD y sus EP | L176: Junio
A177: 002-20202-00003 | B177: COLCHONES DE CAUCHO O MATERIALES PLASTICOS ESPONJOSOS O CELULARES: ARTICULOS DE CAMAS, DE CAUCHO CELULAR O PLASTICO, RECUBIERTOS O NO, | C177: Bien | D177: MUNICIPALIDAD DE SANTA ISABEL | E177: Azuay | F177: AGUIRRE DELGADO LUCIO ARMANDO | G177: 700 | H177: 0.0007 | I177: GAD Municipales | J177: Régimen de GAD | K177: GAD y sus EP | L177: Mayo
A178: 002-20202-00020 | B178: MASCARILLAS DE PROTECCION | C178: Bien | D178: MUNICIPALIDAD DE SANTA ISABEL | E178: Azuay | F178: PROTESEG-SEGURIDAD CIA LTDA | G178: 240 | H178: 0.00024 | I178: GAD Municipales | J178: Régimen de GAD | K178: GAD y sus EP | L178: Junio
A179: 002-20202-00006 | B179: HIPOCLORITO DE SODIO AL 10 POR CIENTO, GALON | C179: Bien | D179: MUNICIPALIDAD DE SANTA ISABEL | E179: Azuay | F179: CORNEJO RIERA EDWIN FABIAN | G179: 158 | H179: 0.000158 | I179: GAD Municipales | J179: Régimen de GAD | K179: GAD y sus EP | L179: Mayo
A180: 002-20202-00004 | B180: ROCEADOR | C180: Bien | D180: MUNICIPALIDAD DE SANTA ISABEL | E180: Azuay | F180: BARRERA SÁNCHEZ LORENA GENOVEVA | G180: 1950 | H180: 0.00195 | I180: GAD Municipales | J180: Régimen de GAD | K180: GAD y sus EP | L180: Mayo
A181: 002-20202-00003 | B181: COLCHONES DE CAUCHO O MATERIALES PLASTICOS ESPONJOSOS O CELULARES: ARTICULOS DE CAMAS, DE CAUCHO CELULAR O PLASTICO, RECUBIERTOS O NO, | C181: Bien | D181: MUNICIPALIDAD DE SANTA ISABEL | E181: Azuay | F181: AGUIRRE DELGADO LUCIO ARMANDO | G181: 71.4288 | H181: 7.14288e-05 | I181: GAD Municipales | J181: Régimen de GAD | K181: GAD y sus EP | L181: Mayo
A182: 002-20202-00003 | B182: COLCHONES DE CAUCHO O MATERIALES PLASTICOS ESPONJOSOS O CELULARES: ARTICULOS DE CAMAS, DE CAUCHO CELULAR O PLASTICO, RECUBIERTOS O NO, | C182: Bien | D182: MUNICIPALIDAD DE SANTA ISABEL | E182: Azuay | F182: AGUIRRE DELGADO LUCIO ARMANDO | G182: 107.1432 | H182: 0.0001071432 | I182: GAD Municipales | J182: Régimen de GAD | K182: GAD y sus EP | L182: Mayo
A183: 002-20202-00020 | B183: BATA O BATON DESCARTABLE PARA CIRUJANO | C183: Bien | D183: MUNICIPALIDAD DE SANTA ISABEL | E183: Azuay | F183: PROTESEG-SEGURIDAD CIA LTDA | G183: 180 | H183: 0.00018 | I183: GAD Municipales | J183: Régimen de GAD | K183: GAD y sus EP | L183: Junio
A184: 002-20202-00019 | B184: DISPENSADOR DE GEL ALCOHOL | C184: Bien | D184: MUNICIPALIDAD DE SANTA ISABEL | E184: Azuay | F184: ALVAREZ CONDO JUAN PATRICIO | G184: 72 | H184: 7.2e-05 | I184: GAD Municipales | J184: Régimen de GAD | K184: GAD y sus EP | L184: Junio
A185: 002-20202-00002 | B185: HIPOCLORITO DE SODIO | C185: Bien | D185: MUNICIPALIDAD DE SANTA ISABEL | E185: Azuay | F185: NATALY XIMENA ARPI LLIVISACA | G185: 2412 | H185: 0.002412 | I185: GAD Municipales | J185: Régimen de GAD | K185: GAD y sus EP | L185: Mayo
A186: 002-20202-00010 | B186: ALCOHOL ANTISEPTICO | C186: Bien | D186: MUNICIPALIDAD DE SANTA ISABEL | E186: Azuay | F186: FARMACIA MUNICIPAL SOLIDARIA SANTA ISABEL FARMASI EP | G186: 1.75 | H186: 1.75e-06 | I186: GAD Municipales | J186: Régimen de GAD | K186: GAD y sus EP | L186: Mayo
A187: 002-20202-00016 | B187: GAFAS PROTECTORAS TRANSPARENTES | C187: Bien | D187: MUNICIPALIDAD DE SANTA ISABEL | E187: Azuay | F187: UGUÑA DURÁN PEDRO ENRIQUE | G187: 13.39 | H187: 1.339e-05 | I187: GAD Municipales | J187: Régimen de GAD | K187: GAD y sus EP | L187: Junio
A188: 002-20202-00010 | B188: INSUMOS DE USO GENERAL | C188: Bien | D188: MUNICIPALIDAD DE SANTA ISABEL | E188: Azuay | F188: FARMACIA MUNICIPAL SOLIDARIA SANTA ISABEL FARMASI EP | G188: 6.5 | H188: 6.5e-06 | I188: GAD Municipales | J188: Régimen de GAD | K188: GAD y sus EP | L188: Mayo
A189: 002-20202-00010 | B189: MASCARILLA DESECHABLE | C189: Bien | D189: MUNICIPALIDAD DE SANTA ISABEL | E189: Azuay | F189: FARMACIA MUNICIPAL SOLIDARIA SANTA ISABEL FARMASI EP | G189: 29.995 | H189: 2.9995e-05 | I189: GAD Municipales | J189: Régimen de GAD | K189: GAD y sus EP | L189: Mayo
A190: 002-20202-00001 | B190: DESINFECTANTE AMONIO CUATERNARIO | C190: Bien | D190: MUNICIPALIDAD DE SANTA ISABEL | E190: Azuay | F190: PESANTEZ CALI WILSON RODRIGO | G190: 3449.6 | H190: 0.0034496 | I190: GAD Municipales | J190: Régimen de GAD | K190: GAD y sus EP | L190: Mayo
A191: 002-20202-00017 | B191: GUANTE DE TRABAJO EN NITRILO | C191: Bien | D191: MUNICIPALIDAD DE SANTA ISABEL | E191: Azuay | F191: NATALY XIMENA ARPI LLIVISACA | G191: 1116 | H191: 0.001116 | I191: GAD Municipales | J191: Régimen de GAD | K191: GAD y sus EP | L191: Junio
A192: 002-20202-00011 | B192: DISPENSADOR DE PAPEL TOALLA | C192: Bien | D192: MUNICIPALIDAD DE SANTA ISABEL | E192: Azuay | F192: VIVAR REINOSO JULIA JENNY | G192: 294 | H192: 0.000294 | I192: GAD Municipales | J192: Régimen de GAD | K192: GAD y sus EP | L192: Mayo
A193: 002-20202-00011 | B193: GEL ALCOHOL ANTISEPTICO | C193: Bien | D193: MUNICIPALIDAD DE SANTA ISABEL | E193: Azuay | F193: VIVAR REINOSO JULIA JENNY | G193: 87.6 | H193: 8.76e-05 | I193: GAD Municipales | J193: Régimen de GAD | K193: GAD y sus EP | L193: Mayo
A194: 002-20202-00005 | B194: DESINFECTANTE AMONIO CUATERNARIO GALON | C194: Bien | D194: MUNICIPALIDAD DE SANTA ISABEL | E194: Azuay | F194: SARMIENTO PESANTEZ RICHARD ALFONSO | G194: 1607 | H194: 0.001607 | I194: GAD Municipales | J194: Régimen de GAD | K194: GAD y sus EP | L194: Mayo
A195: 002-20202-00002 | B195: OVEROL EN IMPERMEABLE | C195: Bien | D195: MUNICIPALIDAD DE SANTA ISABEL | E195: Azuay | F195: NATALY XIMENA ARPI LLIVISACA | G195: 2678 | H195: =G195/1000000 -> 0.002678 | I195: GAD Municipales | J195: Régimen de GAD | K195: GAD y sus EP | L195: Mayo
A196: 002-20202-00012 | B196: MASCARILLAS DE PROTECCION | C196: Bien | D196: MUNICIPALIDAD DE SANTA ISABEL | E196: Azuay | F196: FARMACIA MUNICIPAL SOLIDARIA SANTA ISABEL FARMASI EP | G196: 1500 | H196: 0.0015 | I196: GAD Municipales | J196: Régimen de GAD | K196: GAD y sus EP | L196: Mayo
A197: 002-20202-00010 | B197: ALCOHOL ANTISEPTICO | C197: Bien | D197: MUNICIPALIDAD DE SANTA ISABEL | E197: Azuay | F197: FARMACIA MUNICIPAL SOLIDARIA SANTA ISABEL FARMASI EP | G197: 2.4 | H197: 2.4e-06 | I197: GAD Municipales | J197: Régimen de GAD | K197: GAD y sus EP | L197: Mayo
A198: 002-20202-00013 | B198: SERVICIO DE FUMIGACIÓN CON TÉCNICOS CALIFICADOS | C198: Servicio | D198: MUNICIPALIDAD DE SANTA ISABEL | E198: Azuay | F198: SERRANO LEON ANDRES FELIPE | G198: 10129.995 | H198: 0.010129995 | I198: GAD Municipales | J198: Régimen de GAD | K198: GAD y sus EP | L198: Junio
A199: 002-20202-00002 | B199: GEL ALCOHOL ANTISEPTICO GALON | C199: Bien | D199: MUNICIPALIDAD DE SANTA ISABEL | E199: Azuay | F199: NATALY XIMENA ARPI LLIVISACA | G199: 669.6 | H199: 0.0006696 | I199: GAD Municipales | J199: Régimen de GAD | K199: GAD y sus EP | L199: Mayo
A200: 002-20202-00010 | B200: MASCARILLA DESECHABLE | C200: Bien | D200: MUNICIPALIDAD DE SANTA ISABEL | E200: Azuay | F200: FARMACIA MUNICIPAL SOLIDARIA SANTA ISABEL FARMASI EP | G200: 12.5 | H200: 1.25e-05 | I200: GAD Municipales | J200: Régimen de GAD | K200: GAD y sus EP | L200: Mayo
... 4300 more rows

Sheet Tablas dinamicas (hidden)
A2: ANALISIS POR MES | F2: RANGOS | J2: SECTORIAL
A3: Etiquetas de fila | B3: Suma de Valor_adjudicado | C3: Valor Adjudicado | F3: Etiquetas de fila | G3: Suma de Valor_adjudicado | J3: Etiquetas de fila | K3: Suma de Valor_adjudicado millones | M3: Etiquetas de fila | N3: Suma de Valor_adjudicado | P3: Suma de Valor_adjudicado millones
A4: Febrero | B4: 17085.4 | C4: 207.9148685 | F4: 0-3000000 | G4: 8763372.849 | J4: Jurisdiccional | K4: 0.0001229168947 | M4: Febrero | N4: 8.41943482e-05 | P4: 1
A5: Marzo | B5: 1963718.679 | F5: Total general | G5: 8763372.849 | J5: Turismo | K5: 0.0001241854428 | M5: Marzo | N5: 0.009308290551
A6: Abril | B6: 59391003.3 | C6: Valor Adjudicado | D6: Resto de Procedimietnos | E6: Contratación Pública Total | J6: Asuntos del Exterior | K6: 0.0004241421051 | M6: Abril | N6: 0.2856863882
A7: Mayo | B7: 81730137.11 | C7: =C4 -> 207.9148685 | D7: =E7-C7 -> 2402.887025 | E7: 2610.801894 | J7: Otros | K7: 0.000492151941 | M7: Mayo | N7: 0.3937799776
A8: Junio | B8: 52103088.14 | J8: Otros Organismos del Estado | K8: 0.0006837923282 | M8: Junio | N8: 0.252157493
A9: Julio | B9: 12709835.87 | C9: Compra Pública Total | D9: Emergencias | E9: Resto Procedimientos | J9: Comercio Exterior Industrialización Pesca y Competitividad | K9: 0.001228919536 | M9: Julio | N9: 0.05898365622
A10: Total general | B10: 207914868.5 | C10: =E7/$E$7 -> 1 | D10: =C7/$E$7 -> 0.07963640175 | E10: =D7/$E$7 -> 0.9203635983 | J10: Ambiente | K10: 0.001269661145 | M10: Total general | N10: 1
J11: Agropecuario | K11: 0.003716601349
J12: Educación | K12: 0.00446535101
J13: Administrativo | K13: 0.007540833717
A14: TIPO DE COMPRA | F14: SECTOR DE GOBIERNO | J14: Recursos Naturales | K14: 0.009147245527
A15: Etiquetas de fila | B15: Suma de Valor_adjudicado millones | F15: Etiquetas de fila | G15: Suma de Valor_adjudicado | J15: Asuntos Internos | K15: 0.01168863304
A16: Consultoría | B16: 0.002030985292 | F16: Otros | G16: 0.002230951121 | J16: Defensa Nacional | K16: 0.01220896916 | M16: Suma de Valor_adjudicado millones
A17: Obra | B17: 0.08267670384 | F17: Otros | G17: 0.000492151941 | J17: Desarrollo Urbano y Vivienda | K17: 0.01719741076 | M17: 1
A18: Servicio | B18: 0.1279631698 | F18: Financieras Públicas | G18: 0.0006837923282 | J18: Comunicaciones | K18: 0.01742914063
A19: Bien | B19: 0.7873291411 | F19: Sociedades Anónimas | G19: 0.001055006852 | J19: Bienestar Social | K19: 0.1317117081
A20: Total general | B20: 1 | F20: Gobierno Central y sus EP | G20: 0.4883668705 | J20: Salud | K20: 0.3041672256
F21: Educación Superior | G21: 0.004229471785 | J21: Régimen de GAD | K21: 0.4763811116
F22: EP de la Función Ejecutiva | G22: 0.01723397164 | J22: Total general | K22: 1
F23: Seguridad Social | G23: 0.1313767413
F24: Administración del Estado | G24: 0.3355266858
F25: GAD y sus EP | G25: 0.5094021783
A26: ANALISIS POR TIPO DE CONTRATACIÓN | F26: GAD Parroquiales Rurales | G26: 0.01560329776
A27: Suma de Valor_adjudicado millones | F27: EP de los GAD | G27: 0.03323973024
A28: 1 | F28: GAD Provinciales | G28: 0.0862905979
F29: GAD Municipales | G29: 0.3742685524
F30: Total general | G30: 1
A33: PROVINCIA | F33: ENTIIDAD | J33: PROVEEDOR | M33: CPC
A34: Etiquetas de fila | B34: Valor Adjudicado | F34: Etiquetas de fila | G34: Suma de Valor_adjudicado | J34: Etiquetas de fila | K34: Suma de Valor_adjudicado | M34: Etiquetas de fila | N34: Suma de Valor_adjudicado
A35: Pichincha | B35: 69010721.34 | F35: MUNICIPIO DE PEDERNALES | G35: 1562054.17 | J35: MEGA SANTAMARIA S.A. | K35: 1317718.02 | M35: ARROZ DESCASCARADO | N35: 1816651.563
A36: Guayas | B36: 64039064.63 | F36: ILUSTRE MUNICIPALIDAD DE SANTA ELENA | G36: 1631401.229 | J36: COSTASHUE S.A. | K36: 1336000 | M36: SERVICIOS DE INHUMACION | N36: 1990078.989
A37: Manabí | B37: 13558068.79 | F37: HOSPITAL GENERAL MANTA | G37: 1652302.775 | J37: GUACHO AMAYA ANA ALEXANDRA | K37: 1358580 | M37: EQUIPOS MEDICOS | N37: 2125338.05
A38: Azuay | B38: 8497863.096 | F38: HOSPITAL GENERAL-BABAHOYO | G38: 2019879.66 | J38: JARAVITEX CIA LTDA | K38: 1605825.52 | M38: MASCARILLA DESECHABLE | N38: 2161935.381
A39: El oro | B39: 7146582.957 | F39: GOBIERNO AUTONOMO DESCENTRALIZADO MUNICIPALIDAD DE AMBATO | G39: 2062120.97 | J39: MEDILABOR S.A. | K39: 1768894.8 | M39: RESPIRADORES MECANICOS | N39: 2567144.5
A40: Los Ríos | B40: 5474140.888 | F40: COORDINACIÓN ZONAL 8 - SALUD | G40: 2069808.989 | J40: CORPORACION FAVORITA C.A. | K40: 1952333.845 | M40: GEL ALCOHOL ANTISEPTICO | N40: 2588029.166
A41: Santa Elena | B41: 4671359.098 | F41: GOBIERNO AUTONOMO DESCENTRALIZADO DE LA PROVINCIA DE ESMERALDAS | G41: 2152789.7 | J41: CAMPOSANTOS DEL ECUADOR S.A. CAMPOECUADOR | K41: 1990078.989 | M41: DESINFECTANTE AMONIO CUATERNARIO | N41: 2613993.067
A42: Tungurahua | B42: 3975588.295 | F42: GOBIERNO AUTONOMO DESCENTRALIZADO ILUSTRE MUNICIPALIDAD DEL CANTON DAULE | G42: 2436410.076 | J42: ROCHE ECUADOR S.A. | K42: 2136590 | M42: SERVICIOS GENERALES DE CONSTRUCCION, REFORMAS Y RENOVACIONES | N42: 2898328.15
A43: Esmeraldas | B43: 3791186.191 | F43: GOBIERNO AUTÓNOMO DESCENTRALIZADO DEL DISTRITO METROPOLITANO DE QUITO UNIDAD PATRONATO MUNICIPAL SAN JOSE | G43: 2804361.04 | J43: SIMED S. A. | K43: 2206658.32 | M43: PARACETAMOL | N43: 3053277.571
A44: Chimborazo | B44: 3287714.356 | F44: HOSPITAL GENERAL - MILAGRO | G44: 2861421.224 | J44: COMERCIALIZADORA NUTRI MED NUTRIMEDECUADOR S.A. | K44: 2216407 | M44: ARROZ BLANCO | N44: 3093842.494
A45: Cotopaxi | B45: 2894413.615 | F45: CONSEJO PROVINCIAL DE MANABÍ | G45: 3084183.975 | J45: ARKITRUST S.A. | K45: 2898328.15 | M45: PRENDAS DE VESTIR PARA SEGURIDAD INDUSTRIAL | N45: 3258961.954
A46: Sucumbíos | B46: 2862264.471 | F46: HOSPITAL GENERAL MACHALA | G46: 3322145.46 | J46: ANDRADE LARA JAVIER ROBERTO | K46: 3187964.22 | M46: SISTEMA DE BIOLOGIA MOLECULAR | N46: 3823068
A47: Santo Domingo de los Tsáchilas | B47: 2777822.291 | F47: HOSPITAL GENERAL DEL NORTE DE GUAYAQUIL LOS CEIBOS | G47: 3631560.05 | J47: APOLO APOLO JOSE GONZALO | K47: 3239134.06 | M47: SERVICIOS COMERCIALES AL POR MENOR DE PRODUCTOS COMESTIBLES N.C.P. EN TIENDAS NO ESPECIALIZADAS | N47: 4318467.873
A48: Imbabura | B48: 2212336.121 | F48: HOSPITAL DE ESPECIALIDADES - TEODORO MALDONADO CARBO | G48: 3641199.03 | J48: CONSORCIO CEMENTERIO SUBURBIO | K48: 3348252.56 | M48: RACIONES ALIMENTICIAS PREPARADAS PARA SITUACIONES DE EMERGENCIA | N48: 5492972.752
A49: Morona Santiago | B49: 2196660.908 | F49: HOSPITAL GENERAL GUASMO SUR | G49: 4382965.466 | J49: SALUMED S.A. | K49: 3860004 | M49: MASCARILLA QUIRURGICA, TIRAS, TAMANO ESTANDAR | N49: 7336304.835
A50: Pastaza | B50: 1887077.149 | F50: GOBIERNO PROVINCIAL DEL GUAYAS | G50: 5606002.29 | J50: CONSORCIO CASUARINA | K50: 4209650.9 | M50: SERVICIOS DE ASEOS PUBLICOS | N50: 8933224.02
A51: Napo | B51: 1728285.149 | F51: GOBIERNO AUTONOMO DESCENTRALIZADO DEL DISTRITO METROPOLITANO DE QUITO | G51: 8158802.998 | J51: MILENIO LIMPIEZA Y MANTENIMIENTO S.A. MILIMAN | K51: 4709260.5 | M51: OTRAS OBRAS DE INGENIERIA CIVIL | N51: 9319825.95
A52: Orellana | B52: 1716848.112 | F52: GUAYAQUIL SIGLO XXI, FUNDACIÓN MUNICIPAL PARA LA REGENERACIÓN URBANA | G52: 8933224.02 | J52: CHICAIZA ALVARADO PEDRO GIOVANNY | K52: 5409732.415 | M52: REACTIVOS PARA ANALISIS CELULAR | N52: 13171570.92
A53: Loja | B53: 1677900.69 | F53: MUNICIPALIDAD DE GUAYAQUIL | G53: 17578346.64 | J53: SUMINISTROS MEDICOS MANOSALVAS VILLAGOMEZ MV ASOCIADOS CIA. LTDA. | K53: 6435000 | M53: INSUMOS DE USO GENERAL | N53: 14910327.41
A54: Cañar | B54: 1415370.17 | F54: MINISTERIO DE SALUD PUBLICA MATRIZ | G54: 41815775.4 | J54: MARTINEZ VELASQUEZ ISIDORO RICARDO | K54: 9960000 | M54: MASCARILLAS DE PROTECCION | N54: 16222319.29
A55: Zamora Chinchipe | B55: 1368640.36 | F55: Total general | G55: 121406755.2 | J55: Total general | K55: 65146413.3 | M55: Total general | N55: 111695661.9
A56: Carchi | B56: 764466.0405
A57: Bolívar | B57: 623998.666
A58: Galápagos | B58: 336495.1132
A59: Total general | B59: 207914868.5 | J59: Valor Adjudicado | K59: Resto de Procedimietnos
J60: =J57 -> 0 | K60: =L65-J60 -> 207.9148685
L62: Valor Adjudicado | M62: Entidades
L63: 207.9148685
J64: Top 20 Entidades | K64: Resto de Catálogo Electrónico | L64: Total Catálogo Electrónico
J65: =GETPIVOTDATA("Valor_adjudicado millones",Dashboard!$B$225) -> 121.4067552 | K65: =L65-J65 -> 86.50811333 | L65: =GETPIVOTDATA("Valor_adjudicado millones",$L$62) -> 207.9148685
A66: CATALOGO
J67: Top 20 Entidades | K67: Resto de Catálogo Electrónico | L67: Total Catálogo Electrónico
J68: =J65/L65 -> 0.5839253154 | K68: =K65/L65 -> 0.4160746846 | L68: =J68+K68 -> 1
A70: Suma de Valor_adjudicado | F70: Suma de Valor_adjudicado
A71: 8763372.849 | F71: 202928110.6
L73: Valor Adjudicado | M73: Proveedores
L74: 207.9148685
J75: Top 20 Proveedores | K75: Resto de Catálogo Electrónico | L75: Total Catálogo Electrónico
J76: =GETPIVOTDATA("Valor_adjudicado millones",Dashboard!$H$225) -> 65.32193516 | K76: =L76-J76 -> 142.5929333 | L76: =GETPIVOTDATA("Valor_adjudicado millones",$L$62) -> 207.9148685
J78: Top 20 Entidades | K78: Resto de Catálogo Electrónico | L78: Total Catálogo Electrónico
J79: =J76/L76 -> 0.3141763532 | K79: =K76/L76 -> 0.6858236468 | L79: =J79+K79 -> 1
A82: Suma de Valor_adjudicado
A83: 8763372.849
A90: Suma de Número de entidades que publicaron resoluciones_ | B90: Suma de Número de resoluciones publicadas
A91: 1276 | B91: 1651 | D91: =A91 -> 1276 | E91: =B91 -> 1651
A93: Suma de Número de entidades que registraron contrataciones | B93: Suma de Número de contrataciones registradas
A94: 963 | B94: 7262 | D94: =A94 -> 963 | E94: =B94 -> 7262
A99: Etiquetas de fila | B99: Número de resoluciones publicadas | C99: Número de contrataciones registradas
A100: Pichincha | B100: 179 | C100: 729
A101: Azuay | B101: 178 | C101: 941
A102: Guayas | B102: 151 | C102: 669
A103: Manabí | B103: 144 | C103: 512
A104: Loja | B104: 109 | C104: 498
A105: Chimborazo | B105: 85 | C105: 428
A106: Tungurahua | B106: 85 | C106: 457
A107: El oro | B107: 81 | C107: 509
A108: Sucumbíos | B108: 54 | C108: 138
A109: Carchi | B109: 54 | C109: 187
A110: Cañar | B110: 53 | C110: 236
A111: Los Ríos | B111: 51 | C111: 214
A112: Imbabura | B112: 49 | C112: 250
A113: Zamora Chinchipe | B113: 47 | C113: 171
A114: Morona Santiago | B114: 47 | C114: 315
A115: Cotopaxi | B115: 44 | C115: 180
A116: Pastaza | B116: 42 | C116: 247
A117: Santo Domingo de los Tsáchilas | B117: 34 | C117: 85
A118: Orellana | B118: 34 | C118: 70
A119: Esmeraldas | B119: 33 | C119: 67
A120: Bolívar | B120: 32 | C120: 80
A121: Napo | B121: 30 | C121: 104
A122: Santa Elena | B122: 25 | C122: 142
A123: Galápagos | B123: 10 | C123: 33
A124: Total general | B124: 1651 | C124: 7262
A128: Etiquetas de fila | B128: Número de resoluciones publicadas | C128: Número de contrataciones registradas
A129: Otros | B129: 19 | C129: 63
A130: Financieras Públicas | B130: 5 | C130: 28
A131: Sociedades Anónimas | B131: 6 | C131: 29
A132: Otros | B132: 8 | C132: 6
A133: Gobierno Central y sus EP | B133: 492 | C133: 2363
A134: Educación Superior | B134: 9 | C134: 20
A135: EP de la Función Ejecutiva | B135: 41 | C135: 89
A136: Seguridad Social | B136: 108 | C136: 507
A137: Administración del Estado | B137: 334 | C137: 1747
A138: GAD y sus EP | B138: 1140 | C138: 4836
A139: GAD Provinciales | B139: 48 | C139: 288
A140: EP de los GAD | B140: 117 | C140: 401
A141: GAD Municipales | B141: 457 | C141: 2758
A142: GAD Parroquiales Rurales | B142: 518 | C142: 1389
A143: Total general | B143: 1651 | C143: 7262

Sheet Dashboard
H1: INFORMACIÓN ESTADÍSTICA DE LA CONTRATACIÓN PÚBLICA OTROS PROCEDIMIENTOS (EMERGENCIAS) Boletín Mensual - julio / 20201 (Información de Enero a Julio 2020) (millones de dólares)
A11: INDICADORES DE RESOLUCIONES Y CONTRATACIONES PUBLICADAS
A27: 1. NÚMERO DE RESOLUCIONES Y CONTRATACIONES PUBLICADAS Y NÚMERO DE ENTIDADES QUE PUBLICARON RESOLUCIONES Y CONTRATACIONES
A30: Número de entidades que registraron resoluciones de emergencias y numero de resoluciones de emergencia publicadas | H30: Número de entidades que registraron contrataciones y procesos de contratación publicados
A42: 2. NÚMERO DE RESOLUCIONES Y CONTRATACIONES PUBLICADAS POR PROVINCIA DE LA ENTIDAD
C44: Número de resoluciones y contrataciones publicadas por provincia de la entidad
A67: 3. NÚMERO DE RESOLUCIONES Y CONTRATACIONES PUBLICADAS POR SECTOR DE GOBIERNO
C69: Número de resoluciones y de contrataciones publicadas por sector de gobierno
A93: CIFRAS DE CONTRATACIONES
A107: 1. PARTICIPACIÓN MENSUAL DE LA CONTRATACIÓN PÚBLICA2
B109: Composición mensual de la Contratación Pública | I109: Participación de emergencias respecto a la compra pública total
A127: 3. CONTRATACIÓN PÚBLICA POR TIPO DE COMPRA
B129: Monto adjudicado por tipo de compra | H129: Participación del monto adjudicado por tipo de compra
B131: Tipo de compra | C131: Valor Adjudicado
B132: Bien | C132: 163.6974348
B133: Servicio | C133: 26.60544561
B134: Obra | C134: 17.18971601
B135: Consultoría | C135: 0.42227204
B136: Total | C136: 207.9148685
A143: 5. CONTRATACIÓN PÚBLICA CON RESPECTO A LA PROVINCIA DE LA ENTIDAD CONTRATANTE
B145: Participación de la Contratación Pública a nivel provincial
A172: 6. PARTICIPACIÓN DE LA CONTRATACIÓN PÚBLICA POR SECTORES Y SECTORIALES DE GOBIERNO3
B174: Contratación pública por sectores de gobierno | I174: Participación de contratación pública por sectores de gobierno
B176: Sector de Gobierno Agrupado⁴ | C176: Sector de Gobierno | D176: Valor Adjudicado
B177: GAD y sus EP | C177: GAD Municipales | D177: 77.81599686
C178: GAD Provinciales | D178: 17.94109831
C179: EP de los GAD | D179: 6.911034141
C180: GAD Parroquiales Rurales | D180: 3.244157602
B181: Gobierno Central y sus EP | C181: Administración del Estado | D181: 69.76098676
C182: Seguridad Social | D182: 27.31517789
C183: EP de la Función Ejecutiva | D183: 3.583198946
C184: Educación Superior | D184: 0.87937007
B185: Otros | C185: Sociedades Anónimas | D185: 0.2193516108
C186: Financieras Públicas | D186: 0.142170592
C187: Otros | D187: 0.1023257061
B188: Total | D188: 207.9148685
B192: Contratación pública por sectoriales de gobierno | I192: Participación de contratación pública por sectoriales de gobierno
B194: Sectorial de Gobierno | C194: Valor Adjudicado
B195: Régimen de GAD | C195: 99.04671618
B196: Salud | C196: 63.24088872
B197: Bienestar Social | C197: 27.38482248
B198: Comunicaciones | C198: 3.623777483
B199: Desarrollo Urbano y Vivienda | C199: 3.575597397
B200: Defensa Nacional | C200: 2.538426216
B201: Asuntos Internos | C201: 2.430240601
B202: Recursos Naturales | C202: 1.901848351
B203: Administrativo | C203: 1.567851451
B204: Educación | C204: 0.928412868
B205: Agropecuario | C205: 0.7727366808
B206: Ambiente | C206: 0.26398143
B207: Comercio Exterior Industrialización Pesca y Competitividad | C207: 0.2555106437
B208: Otros Organismos del Estado | C208: 0.142170592
B209: Otros | C209: 0.1023257061
B210: Asuntos del Exterior | C210: 0.08818545
B211: Turismo | C211: 0.02582
B212: Jurisdiccional | C212: 0.02555625
B213: Total | C213: 207.9148685
A221: 7. RANKING DE LAS 20 MAYORES ENTIDADES CONTRATANTES Y 20 MAYORES PROVEEDORES
B223: Ranking de las 20 mayores entidades contratantes | H223: Ranking de los 20 mayores proveedores adjudicados5
B225: Entidad | C225: Valor Adjudicado | H225: Proveedor | I225: Valor Adjudicado
B226: MINISTERIO DE SALUD PUBLICA MATRIZ | C226: 41.8157754 | H226: MARTINEZ VELASQUEZ ISIDORO RICARDO | I226: 9.96
B227: MUNICIPALIDAD DE GUAYAQUIL | C227: 17.57834664 | H227: SUMINISTROS MEDICOS MANOSALVAS VILLAGOMEZ MV ASOCIADOS CIA. LTDA. | I227: 6.435
B228: GUAYAQUIL SIGLO XXI, FUNDACIÓN MUNICIPAL PARA LA REGENERACIÓN URBANA | C228: 8.93322402 | H228: CHICAIZA ALVARADO PEDRO GIOVANNY | I228: 5.409732415
B229: GOBIERNO AUTONOMO DESCENTRALIZADO DEL DISTRITO METROPOLITANO DE QUITO | C229: 8.158802998 | H229: MILENIO LIMPIEZA Y MANTENIMIENTO S.A. MILIMAN | I229: 4.7092605
B230: GOBIERNO PROVINCIAL DEL GUAYAS | C230: 5.60600229 | H230: CONSORCIO CASUARINA | I230: 4.2096509
B231: HOSPITAL GENERAL GUASMO SUR | C231: 4.382965466 | H231: SALUMED S.A. | I231: 3.860004
B232: HOSPITAL DE ESPECIALIDADES - TEODORO MALDONADO CARBO | C232: 3.64119903 | H232: CONSORCIO CEMENTERIO SUBURBIO | I232: 3.34825256
B233: HOSPITAL GENERAL DEL NORTE DE GUAYAQUIL LOS CEIBOS | C233: 3.63156005 | H233: APOLO APOLO JOSE GONZALO | I233: 3.23913406
B234: HOSPITAL GENERAL MACHALA | C234: 3.32214546 | H234: ANDRADE LARA JAVIER ROBERTO | I234: 3.18796422
B235: CONSEJO PROVINCIAL DE MANABÍ | C235: 3.084183975 | H235: ARKITRUST S.A. | I235: 2.89832815
B236: HOSPITAL GENERAL - MILAGRO | C236: 2.861421224 | H236: SIMED S. A. | I236: 2.27317583
B237: GOBIERNO AUTÓNOMO DESCENTRALIZADO DEL DISTRITO METROPOLITANO DE QUITO UNIDAD PATRONATO MUNICIPAL SAN JOSE | C237: 2.80436104 | H237: COMERCIALIZADORA NUTRI MED NUTRIMEDECUADOR S.A. | I237: 2.216407
B238: GOBIERNO AUTONOMO DESCENTRALIZADO ILUSTRE MUNICIPALIDAD DEL CANTON DAULE | C238: 2.436410076 | H238: ROCHE ECUADOR S.A. | I238: 2.13659
B239: GOBIERNO AUTONOMO DESCENTRALIZADO DE LA PROVINCIA DE ESMERALDAS | C239: 2.1527897 | H239: CORPORACION FAVORITA C.A. | I239: 2.060390795
B240: COORDINACIÓN ZONAL 8 - SALUD | C240: 2.069808989 | H240: CAMPOSANTOS DEL ECUADOR S.A. CAMPOECUADOR | I240: 1.990078989
B241: GOBIERNO AUTONOMO DESCENTRALIZADO MUNICIPALIDAD DE AMBATO | C241: 2.06212097 | H241: MEDILABOR S.A. | I241: 1.7688948
B242: HOSPITAL GENERAL-BABAHOYO | C242: 2.01987966 | H242: JARAVITEX CIA LTDA | I242: 1.60677292
B243: HOSPITAL GENERAL MANTA | C243: 1.652302775 | H243: GUACHO AMAYA ANA ALEXANDRA | I243: 1.35858
B244: ILUSTRE MUNICIPALIDAD DE SANTA ELENA | C244: 1.631401229 | H244: COSTASHUE S.A. | I244: 1.336
B245: MUNICIPIO DE PEDERNALES | C245: 1.56205417 | H245: MEGA SANTAMARIA S.A. | I245: 1.31771802
B246: Total | C246: 121.4067552 | H246: Total | I246: 65.32193516
A249: 8. CLASIFICACIÓN NACIONAL CENTRAL DE PRODUCTOS (CPC) (TOP 20)
C251: Ranking de los 20 mayores CPC adjudicados
A281: Notas: 1. Datos provisionales 2. Fuente: SERCOP - SOCE. El monto adjudicado no considera procesos identificados como duplicados, desiertos, gestionados en años anteriores, donde no se hicieron contrataciones y donde se dejaron las resoluciones insubsistentes. 3. Clasificación según Catálogo de Instituciones y Entidades Operativas Desconcentradas del Sector Público del Ministerio de Economía y Finanzas. 4. Gobierno Central incluye los siguientes sectores: Administración del Estado, Entidades de Educación Superior, Entidades de Seguridad Social y Empresas Públicas de la Función Ejecutiva; GAD y sus EP contiene GAD Municipales, Provinciales y Parroquiales Rurales y sus Empresas Públicas; Otras entidades incluye Sociedades Anónimas con participación pública, Entidades Financieras Públicas y Otros. 5. Incluye información proveedores que hacen a la vez de entidades. Además, en casos donde adjudicó un consorcio el nombre que registra es del procurador 6.Información corresponde a procesos publicados y gestionados en el período enero-julio 2020 7.No se registran contrataciones publicadas y gestionadas en enero de 2020.
K290: #ComprasPúblicasTransparentes
